Workbook

Sheet ECHEANCIER
H1: COMPTABILISATION | I1: MODE PAIEMENT | J1: TIERS
A2: JOURS MENS. | B2: JOURS TRIM. | C2: PAIEMENT | D2: TIERS | E2: CATEGORIE | F2: MONTANT | H2: C. PORT D | I2: Carte | J2: Unico
A3: 1 | C3: Vir recu | D3: ARCO | E3: RETRAITE | F3: 750 | H3: C. PORT C | I3: Cheque | J3: Geant
A4: 5 | C4: Prel | D4: UNEO | E4: MUTUELLE | F4: -100 | H4: DEPENSES | I4: Prel | J4: Carrefour
A5: 10 | C5: Vir recu | D5: CRAM | E5: RETRAITE | F5: 1200 | H5: DIVERS | I5: Vir emis | J5: Marche Fermier
A6: 10 | C6: Prel | D6: A.L.M. | E6: EAUX | F6: -40 | H6: REC DIV | I6: Retrait | J6: Bontemps
A7: 15 | C7: Prel | D7: T.P. | E7: T.HABI | F7: -100 | I7: TIP | J7: Lutz
A8: 15 | C8: Prel | D8: T.P. | E8: T.FONC | F8: -110 | I8: Vers | J8: Amazon
A9: 15 | C9: Prel | D9: T.P. | E9: IMP.REV | F9: -350 | I9: Depot cheque | J9: Dr Dupont
A10: 20 | C10: Prel | D10: ENGIE | E10: GAZ-ELEC | F10: -120 | I10: Vir recu | J10: Poste
B11: 27 | C11: Prel | D11: ST CHRIST | E11: ASS.VOIT | F11: -95
A18: L'échéance trimsertrielle est le 27 du premier mois de chaque trimestre

Sheet MODELE
A1: =MID(CELL("filename",A1),FIND("]",CELL("filename",A1))+1,32) -> MODELE
A2: N° SAISIE | B2: JOURS | C2: MODE | D2: TIERS | E2: CATEGORIE | F2: BANQUE POSTALE | H2: RECETTES | J2: DEPENSES | K2: C. PORT | M2: DIVERS
C3: PAIEMENT | F3: DEBIT/CREDIT | G3: SOLDE | H3: RETRAITE | I3: DIVERSES | K3: LOYER | L3: CHARGES
A4: REPORT | B4: 2016-06-01 | G4: 7500
A5: 1 | B5: =B4 -> 2016-06-01 | C5: =ECHEANCIER!C3 -> Vir recu | D5: =ECHEANCIER!D3 -> ARCO | E5: =ECHEANCIER!E3 -> RETRAITE | F5: =IF($B5<=TODAY(),ECHEANCIER!$F3,0) -> 750 | G5: =SUM(G4)+SUM(F5) -> 8250 | H5: =IF($E5="RETRAITE",$F5,0) -> 750 | I5: =IF($A5="","",IF($E5="MUTUELLE",$F5,IF($E5="EAUX",$F5,IF($E5="T.HABI",$F5,(IF($E5="T.FONC",$F5,(IF($E5="IMP.REV",$F5,(IF($E5="GAZ-ELEC",$F5,(IF($E5="ASS.VOIT",$F5,0)))))))))))) -> 0 | J5: =IF($A5="","",IF($AE5="MUTUELLE",$F$5,(IF($A5=4,ECHEANCIER!$E$6,IF($A5=5,ECHEANCIER!$E$7,IF($A5=6,ECHEANCIER!$E$8,IF($A5=7,ECHEANCIER!$E$9,IF($A5=8,ECHEANCIER!$E$10,"")))))))) -> 
A6: 2 | B6: =B4+1 -> 2016-06-02 | C6: =ECHEANCIER!C4 -> Prel | D6: =ECHEANCIER!D4 -> UNEO | E6: =ECHEANCIER!E4 -> MUTUELLE | F6: =IF($B6<=TODAY(),ECHEANCIER!$F4,0) -> -100 | G6: =SUM(G5)+SUM(F6) -> 8150 | H6: =IF($E6="RETRAITE",$F6,0) -> 0 | I6: -100 | J6: =IF($A6="","",IF($E6="MUTUELLE",$F6,(IF($A6=4,ECHEANCIER!$E$6,IF($A6=5,ECHEANCIER!$E$7,IF($A6=6,ECHEANCIER!$E$8,IF($A6=7,ECHEANCIER!$E$9,IF($A6=8,ECHEANCIER!$E$10,"")))))))) -> -100
A7: 3 | B7: =B4+9 -> 2016-06-10 | C7: =ECHEANCIER!C5 -> Vir recu | D7: =ECHEANCIER!D5 -> CRAM | E7: =ECHEANCIER!E5 -> RETRAITE | F7: =IF($B7<=TODAY(),ECHEANCIER!$F5,0) -> 0 | G7: 8150 | H7: 0 | I7: 0 | J7: =F7 -> 0
A8: 4 | B8: =B4+9 -> 2016-06-10 | C8: =ECHEANCIER!C6 -> Prel | D8: =ECHEANCIER!D6 -> A.L.M. | E8: =ECHEANCIER!E6 -> EAUX | F8: =IF($B8<=TODAY(),ECHEANCIER!$F6,0) -> 0 | G8: 8150 | H8: 0 | I8: 0 | J8: 0
A9: 5 | B9: =B4+14 -> 2016-06-15 | C9: =ECHEANCIER!C7 -> Prel | D9: =ECHEANCIER!D7 -> T.P. | E9: =ECHEANCIER!E7 -> T.HABI | F9: =IF($B9<=TODAY(),ECHEANCIER!$F7,0) -> 0 | G9: 8150 | H9: 0 | I9: 0 | J9: 0
A10: 6 | B10: =B4+14 -> 2016-06-15 | C10: =ECHEANCIER!C8 -> Prel | D10: =ECHEANCIER!D8 -> T.P. | E10: =ECHEANCIER!E8 -> T.FONC | F10: =IF($B10<=TODAY(),ECHEANCIER!$F8,0) -> 0 | G10: 8150 | H10: 0 | I10: 0 | J10: 0
A11: 7 | B11: =B4+14 -> 2016-06-15 | C11: =ECHEANCIER!C9 -> Prel | D11: =ECHEANCIER!D9 -> T.P. | E11: =ECHEANCIER!E9 -> IMP.REV | F11: =IF($B11<=TODAY(),ECHEANCIER!$F9,0) -> 0 | G11: 8150 | H11: 0 | I11: 0 | J11: 0
A12: 8 | B12: =B4+19 -> 2016-06-20 | C12: =ECHEANCIER!C10 -> Prel | D12: =ECHEANCIER!D10 -> ENGIE | E12: =ECHEANCIER!E10 -> GAZ-ELEC | F12: =IF($B12<=TODAY(),ECHEANCIER!$F10,0) -> 0 | G12: 8150 | H12: 0 | I12: 0 | J12: 0
A13: 9 | B13: =B5+26 -> 2016-06-27 | C13: =ECHEANCIER!C11 -> Prel | D13: =ECHEANCIER!D11 -> ST CHRIST | E13: =ECHEANCIER!E11 -> ASS.VOIT | F13: =IF(AND($A13=9,$E13="ASS.VOIT",OR($A$1="modele",$A$1="avril",$A$1="juillet",$A$1="octobre")),ECHEANCIER!$F$11,"") -> -95 | G13: 8055 | H13: 0 | I13: -95 | J13: -95 | K13: =IF($E13="C. PORT C",$F13,0) -> 0 | L13: =IF($E13="C. PORT D",$F13,0) -> 0 | M13: =IF($E13="DIVERS",$F13,0) -> 0
A14: 10 | B14: 1 | C14: Vir recu | D14: Carrefour | E14: REC DIV | F14: 40 | G14: 8095 | I14: =IF($E14="REC DIV",$F14,0) -> 40 | J14: =IF($E14="DEPENSES",$F14,0) -> 0 | K14: =IF($E14="C. PORT C",$F14,0) -> 0 | L14: =IF($E14="C. PORT D",$F14,0) -> 0 | M14: =IF($E14="DIVERS",$F14,0) -> 0
A15: 11 | B15: 2 | C15: Cheque | D15: Lutz | E15: C. PORT D | F15: -135 | G15: 7960 | I15: =IF($E15="REC DIV",$F15,0) -> 0 | J15: 0 | K15: 0 | L15: -135 | M15: 0
A16: 12 | B16: 2 | C16: Vir recu | D16: Lutz | E16: C. PORT C | F16: 650 | G16: 8610 | I16: 0 | J16: 0 | K16: 650 | L16: 0 | M16: 0
A17: 13 | B17: 3 | C17: Retrait | D17: Poste | E17: DEPENSES | F17: -500 | G17: 8110 | I17: 0 | J17: -500 | K17: 0 | L17: 0 | M17: 0
A18: 14 | B18: 4 | C18: Cheque | D18: Bontemps | E18: DEPENSES | F18: -90 | G18: =SUM(G17)+SUM(F18) -> 8020 | I18: 0 | J18: -90 | K18: 0 | L18: 0 | M18: 0
F19: =IF($A19="","",IF($A19=2,ECHEANCIER!$E$4,IF($A19=4,ECHEANCIER!$E$6,IF($A19=5,ECHEANCIER!$E$7,IF($A19=6,ECHEANCIER!$E$8,IF($A19=7,ECHEANCIER!$E$9,IF($A19=8,ECHEANCIER!$E$10,""))))))) ->  | G19: 8020 | I19: 0 | J19: =IF($A19="","",IF($A19=2,ECHEANCIER!$E$4,IF($A19=4,ECHEANCIER!$E$6,IF($A19=5,ECHEANCIER!$E$7,IF($A19=6,ECHEANCIER!$E$8,IF($A19=7,ECHEANCIER!$E$9,IF($A19=8,ECHEANCIER!$E$10,""))))))) ->  | K19: 0 | L19: 0 | M19: 0
G20: 8020 | I20: 0 | J20: =IF($A20="","",IF($A20=2,ECHEANCIER!$E$4,IF($A20=4,ECHEANCIER!$E$6,IF($A20=5,ECHEANCIER!$E$7,IF($A20=6,ECHEANCIER!$E$8,IF($A20=7,ECHEANCIER!$E$9,IF($A20=8,ECHEANCIER!$E$10,""))))))) ->  | K20: 0 | L20: 0 | M20: 0
G21: 8020
G22: 8020
G23: 8020
A24: TOTAL MOIS | F24: =SUM(F5:F23) -> 520 | H24: =SUM(H5:H23) -> 750 | I24: =SUM(I5:I23) -> -155 | J24: =SUM(J5:J23) -> -785 | K24: 650 | L24: -135 | M24: 0
A25: SOUS TOTAL | G25: =G23 -> 8020 | H25: =H24+H4 -> 750 | I25: =I24+I4 -> -155 | J25: =J24+J4 -> -785 | K25: =K24+K4 -> 650 | L25: -135 | M25: =M24+M4 -> 0
A26: TOTAL | H26: =H25+I25 -> 595 | J26: =J24+J4 -> -785 | K26: =SUM(K25:L25) -> 515 | M26: =M24+M4 -> 0

Sheet JANVIER
A1: =MID(CELL("filename",A1),FIND("]",CELL("filename",A1))+1,32) -> JANVIER
A2: N° SAISIE | B2: JOURS | C2: MODE | D2: TIERS | E2: CATEGORIE | F2: BANQUE POSTALE | H2: RECETTES | J2: DEPENSES | K2: C. PORT | M2: DIVERS
C3: PAIEMENT | F3: DEBIT/CREDIT | G3: SOLDE | H3: RETRAITE | I3: DIVERSES | K3: LOYER | L3: CHARGES
A4: REPORT | B4: 2016-01-01 | G4: 7500
A5: 1 | B5: =B4 -> 2016-01-01 | C5: =ECHEANCIER!C3 -> Vir recu | D5: =ECHEANCIER!D3 -> ARCO | E5: =ECHEANCIER!E3 -> RETRAITE | F5: =IF($B5<=TODAY(),ECHEANCIER!$F3,0) -> 750 | G5: =SUM(G4)+SUM(F5) -> 8250 | H5: =F5 -> 750 | J5: =IF($A5="","",IF($A5=2,ECHEANCIER!$E$4,IF($A5=4,ECHEANCIER!$E$6,IF($A5=5,ECHEANCIER!$E$7,IF($A5=6,ECHEANCIER!$E$8,IF($A5=7,ECHEANCIER!$E$9,IF($A5=8,ECHEANCIER!$E$10,""))))))) -> 
A6: 2 | B6: =B4+4 -> 2016-01-05 | C6: =ECHEANCIER!C4 -> Prel | D6: =ECHEANCIER!D4 -> UNEO | E6: =ECHEANCIER!E4 -> MUTUELLE | F6: =IF($B6<=TODAY(),ECHEANCIER!$F4,0) -> -100 | G6: =SUM(G5)+SUM(F6) -> 8150 | H6: =IF($A6="","",IF($A6=1,ECHEANCIER!$E$3,IF($A6=3,ECHEANCIER!$E$5,IF($A6<>"RETRAITE","")))) ->  | J6: =IF($A6="","",IF($E6="MUTUELLE",$F6,IF($E6="EAUX",$F6,IF($E6="T.HABI",$F6,(IF($E6="T.FONC",$F6,(IF($E6="IMP.REV",$F6,(IF($E6="GAZ-ELEC",$F6,(IF($E6="ASS.VOIT",$F6,0)))))))))))) -> -100
A7: 3 | B7: =B4+9 -> 2016-01-10 | C7: =ECHEANCIER!C5 -> Vir recu | D7: =ECHEANCIER!D5 -> CRAM | E7: =ECHEANCIER!E5 -> RETRAITE | F7: =IF($B7<=TODAY(),ECHEANCIER!$F5,0) -> 1200 | G7: 9350 | H7: =F7 -> 1200 | J7: =IF($A7="","",IF($E7="MUTUELLE",$F7,IF($E7="EAUX",$F7,IF($E7="T.HABI",$F7,(IF($E7="T.FONC",$F7,(IF($E7="IMP.REV",$F7,(IF($E7="GAZ-ELEC",$F7,(IF($E7="ASS.VOIT",$F7,0)))))))))))) -> 0
A8: 4 | B8: =B4+9 -> 2016-01-10 | C8: =ECHEANCIER!C6 -> Prel | D8: =ECHEANCIER!D6 -> A.L.M. | E8: =ECHEANCIER!E6 -> EAUX | F8: =IF($B8<=TODAY(),ECHEANCIER!$F6,0) -> -40 | G8: 9310 | H8: =IF($A8="","",IF($A8=1,ECHEANCIER!$E$3,IF($A8=3,ECHEANCIER!$E$5,IF($A8<>"RETRAITE","")))) ->  | J8: -40
A9: 5 | B9: =B4+14 -> 2016-01-15 | C9: =ECHEANCIER!C7 -> Prel | D9: =ECHEANCIER!D7 -> T.P. | E9: =ECHEANCIER!E7 -> T.HABI | F9: =IF($B9<=TODAY(),ECHEANCIER!$F7,0) -> -100 | G9: 9210 | H9: =IF($A9="","",IF($A9=1,ECHEANCIER!$E$3,IF($A9=3,ECHEANCIER!$E$5,IF($A9<>"RETRAITE","")))) ->  | J9: -100
A10: 6 | B10: =B4+14 -> 2016-01-15 | C10: =ECHEANCIER!C8 -> Prel | D10: =ECHEANCIER!D8 -> T.P. | E10: =ECHEANCIER!E8 -> T.FONC | F10: =IF($B10<=TODAY(),ECHEANCIER!$F8,0) -> -110 | G10: 9100 | H10: =IF($A10="","",IF($A10=1,ECHEANCIER!$E$3,IF($A10=3,ECHEANCIER!$E$5,IF($A10<>"RETRAITE","")))) ->  | J10: -110
A11: 7 | B11: =B4+14 -> 2016-01-15 | C11: =ECHEANCIER!C9 -> Prel | D11: =ECHEANCIER!D9 -> T.P. | E11: =ECHEANCIER!E9 -> IMP.REV | F11: =IF($B11<=TODAY(),ECHEANCIER!$F9,0) -> -350 | G11: 8750 | H11: =IF($A11="","",IF($A11=1,ECHEANCIER!$E$3,IF($A11=3,ECHEANCIER!$E$5,IF($A11<>"RETRAITE","")))) ->  | J11: -350
A12: 8 | B12: =B4+19 -> 2016-01-20 | C12: =ECHEANCIER!C10 -> Prel | D12: =ECHEANCIER!D10 -> ENGIE | E12: =ECHEANCIER!E10 -> GAZ-ELEC | F12: =IF($B12<=TODAY(),ECHEANCIER!$F10,0) -> -120 | G12: 8630 | H12: =IF($A12="","",IF($A12=1,ECHEANCIER!$E$3,IF($A12=3,ECHEANCIER!$E$5,IF($A12<>"RETRAITE","")))) ->  | J12: -120
A13: 9 | B13: =B5+26 -> 2016-01-27 | C13: =ECHEANCIER!C11 -> Prel | D13: =ECHEANCIER!D11 -> ST CHRIST | E13: =ECHEANCIER!E11 -> ASS.VOIT | F13: =IF(AND($A13=9,$E13="ASS.VOIT",OR($A$1="janvier",$A$1="avril",$A$1="juillet",$A$1="octobre")),ECHEANCIER!$F$11,"") -> -95 | G13: 8535 | J13: -95 | K13: =IF($E13="C. PORT LOYER",$F13,0) -> 0 | L13: =IF($E13="C. PORT CHARGES",$F13,0) -> 0 | M13: =IF($E13="DIVERS",$F13,0) -> 0
A14: 10 | B14: 1 | C14: Vir recu | D14: Carrefour | E14: RECETTES DIVERSES | F14: 40 | G14: 8575 | I14: =IF($E14="RECETTES DIVERSES",$F14,0) -> 40 | J14: =IF($E14="DEPENSES",$F14,0) -> 0 | K14: =IF($E14="C. PORT LOYER",$F14,0) -> 0 | L14: =IF($E14="C. PORT CHARGES",$F14,0) -> 0 | M14: =IF($E14="DIVERS",$F14,0) -> 0
A15: 11 | B15: 2 | C15: Cheque | D15: Lutz | E15: C. PORT CHARGES | F15: -135 | G15: 8440 | I15: =IF($E15="RECETTES DIVERSES",$F15,0) -> 0 | J15: 0 | K15: 0 | L15: -135 | M15: 0
A16: 12 | B16: 2 | C16: Vir recu | D16: Lutz | E16: C. PORT LOYER | F16: 650 | G16: 9090 | I16: =IF($E16="RECETTES DIVERSES",$F16,0) -> 0 | J16: 0 | K16: 650 | L16: 0 | M16: 0
A17: 13 | B17: 3 | C17: Retrait | D17: Poste | E17: DIVERS | F17: -500 | G17: 8590 | I17: 0 | J17: 0 | K17: 0 | L17: 0 | M17: -500
A18: 14 | B18: 4 | C18: Carte | D18: Bontemps | E18: DEPENSES | F18: 90 | G18: =SUM(G17)+SUM(F18) -> 8680 | I18: 0 | J18: 90 | K18: 0 | L18: 0 | M18: 0
F19: =IF($A19="","",IF($A19=2,ECHEANCIER!$E$4,IF($A19=4,ECHEANCIER!$E$6,IF($A19=5,ECHEANCIER!$E$7,IF($A19=6,ECHEANCIER!$E$8,IF($A19=7,ECHEANCIER!$E$9,IF($A19=8,ECHEANCIER!$E$10,""))))))) ->  | G19: 8680 | I19: 0 | J19: =IF($A19="","",IF($A19=2,ECHEANCIER!$E$4,IF($A19=4,ECHEANCIER!$E$6,IF($A19=5,ECHEANCIER!$E$7,IF($A19=6,ECHEANCIER!$E$8,IF($A19=7,ECHEANCIER!$E$9,IF($A19=8,ECHEANCIER!$E$10,""))))))) ->  | K19: 0 | L19: 0 | M19: 0
G20: 8680 | I20: 0 | J20: =IF($A20="","",IF($A20=2,ECHEANCIER!$E$4,IF($A20=4,ECHEANCIER!$E$6,IF($A20=5,ECHEANCIER!$E$7,IF($A20=6,ECHEANCIER!$E$8,IF($A20=7,ECHEANCIER!$E$9,IF($A20=8,ECHEANCIER!$E$10,""))))))) ->  | K20: 0 | L20: 0 | M20: 0
G21: 8680
G22: 8680
G23: 8680
A24: TOTAL MOIS | F24: =SUM(F5:F23) -> 1180 | H24: =SUM(H5:H23) -> 1950 | I24: =SUM(I5:I23) -> 40 | J24: =SUM(J5:J23) -> -825 | K24: 650 | L24: -135 | M24: -500
A25: SOUS TOTAL | G25: =G23 -> 8680 | H25: =H24+H4 -> 1950 | I25: =I24+I4 -> 40 | J25: =J24+J4 -> -825 | K25: =K24+K4 -> 650 | L25: -135 | M25: =M24+M4 -> -500
A26: TOTAL | H26: =H25+I25 -> 1990 | J26: =J24+J4 -> -825 | K26: =SUM(K25:L25) -> 515 | M26: =M24+M4 -> -500

Sheet FEVRIER
A1: =MID(CELL("filename",A1),FIND("]",CELL("filename",A1))+1,32) -> FEVRIER
A2: N° SAISIE | B2: JOURS | C2: MODE | D2: TIERS | E2: CATEGORIE | F2: BANQUE POSTALE | H2: RECETTES | J2: DEPENSES | K2: C. PORT | M2: DIVERS
C3: PAIEMENT | F3: DEBIT/CREDIT | G3: SOLDE | H3: RETRAITE | I3: DIVERSES | K3: LOYER | L3: CHARGES
A4: REPORT | B4: 2016-02-01 | G4: =JANVIER!G25 -> 8680 | H4: =JANVIER!H25 -> 1950 | I4: =JANVIER!I25 -> 40 | J4: =JANVIER!J25 -> -825 | K4: =JANVIER!K25 -> 650 | L4: =JANVIER!L25 -> -135 | M4: =JANVIER!M25 -> -500
A5: 1 | B5: =B4 -> 2016-02-01 | C5: =ECHEANCIER!C3 -> Vir recu | D5: =ECHEANCIER!D3 -> ARCO | E5: =ECHEANCIER!E3 -> RETRAITE | F5: =IF($B5<=TODAY(),ECHEANCIER!$F3,0) -> 750 | G5: =SUM(G4)+SUM(F5) -> 9430 | H5: =F5 -> 750 | J5: =IF($A5="","",IF($A5=2,ECHEANCIER!$E$4,IF($A5=4,ECHEANCIER!$E$6,IF($A5=5,ECHEANCIER!$E$7,IF($A5=6,ECHEANCIER!$E$8,IF($A5=7,ECHEANCIER!$E$9,IF($A5=8,ECHEANCIER!$E$10,""))))))) -> 
A6: 2 | B6: =B4+4 -> 2016-02-05 | C6: =ECHEANCIER!C4 -> Prel | D6: =ECHEANCIER!D4 -> UNEO | E6: =ECHEANCIER!E4 -> MUTUELLE | F6: =IF($B6<=TODAY(),ECHEANCIER!$F4,0) -> -100 | G6: =SUM(G5)+SUM(F6) -> 9330 | H6: =IF($A6="","",IF($A6=1,ECHEANCIER!$E$3,IF($A6=3,ECHEANCIER!$E$5,IF($A6<>"RETRAITE","")))) ->  | J6: =IF($A6="","",IF($E6="MUTUELLE",$F6,IF($E6="EAUX",$F6,IF($E6="T.HABI",$F6,(IF($E6="T.FONC",$F6,(IF($E6="IMP.REV",$F6,(IF($E6="GAZ-ELEC",$F6,(IF($E6="ASS.VOIT",$F6,0)))))))))))) -> -100
A7: 3 | B7: =B4+9 -> 2016-02-10 | C7: =ECHEANCIER!C5 -> Vir recu | D7: =ECHEANCIER!D5 -> CRAM | E7: =ECHEANCIER!E5 -> RETRAITE | F7: =IF($B7<=TODAY(),ECHEANCIER!$F5,0) -> 1200 | G7: 10530 | H7: =F7 -> 1200 | J7: =IF($A7="","",IF($E7="MUTUELLE",$F7,IF($E7="EAUX",$F7,IF($E7="T.HABI",$F7,(IF($E7="T.FONC",$F7,(IF($E7="IMP.REV",$F7,(IF($E7="GAZ-ELEC",$F7,(IF($E7="ASS.VOIT",$F7,0)))))))))))) -> 0
A8: 4 | B8: =B4+9 -> 2016-02-10 | C8: =ECHEANCIER!C6 -> Prel | D8: =ECHEANCIER!D6 -> A.L.M. | E8: =ECHEANCIER!E6 -> EAUX | F8: =IF($B8<=TODAY(),ECHEANCIER!$F6,0) -> -40 | G8: 10490 | H8: =IF($A8="","",IF($A8=1,ECHEANCIER!$E$3,IF($A8=3,ECHEANCIER!$E$5,IF($A8<>"RETRAITE","")))) ->  | J8: -40
A9: 5 | B9: =B4+14 -> 2016-02-15 | C9: =ECHEANCIER!C7 -> Prel | D9: =ECHEANCIER!D7 -> T.P. | E9: =ECHEANCIER!E7 -> T.HABI | F9: =IF($B9<=TODAY(),ECHEANCIER!$F7,0) -> -100 | G9: 10390 | H9: =IF($A9="","",IF($A9=1,ECHEANCIER!$E$3,IF($A9=3,ECHEANCIER!$E$5,IF($A9<>"RETRAITE","")))) ->  | J9: -100
A10: 6 | B10: =B4+14 -> 2016-02-15 | C10: =ECHEANCIER!C8 -> Prel | D10: =ECHEANCIER!D8 -> T.P. | E10: =ECHEANCIER!E8 -> T.FONC | F10: =IF($B10<=TODAY(),ECHEANCIER!$F8,0) -> -110 | G10: 10280 | H10: =IF($A10="","",IF($A10=1,ECHEANCIER!$E$3,IF($A10=3,ECHEANCIER!$E$5,IF($A10<>"RETRAITE","")))) ->  | J10: -110
A11: 7 | B11: =B4+14 -> 2016-02-15 | C11: =ECHEANCIER!C9 -> Prel | D11: =ECHEANCIER!D9 -> T.P. | E11: =ECHEANCIER!E9 -> IMP.REV | F11: =IF($B11<=TODAY(),ECHEANCIER!$F9,0) -> -350 | G11: 9930 | H11: =IF($A11="","",IF($A11=1,ECHEANCIER!$E$3,IF($A11=3,ECHEANCIER!$E$5,IF($A11<>"RETRAITE","")))) ->  | J11: -350
A12: 8 | B12: =B4+19 -> 2016-02-20 | C12: =ECHEANCIER!C10 -> Prel | D12: =ECHEANCIER!D10 -> ENGIE | E12: =ECHEANCIER!E10 -> GAZ-ELEC | F12: =IF($B12<=TODAY(),ECHEANCIER!$F10,0) -> -120 | G12: 9810 | H12: =IF($A12="","",IF($A12=1,ECHEANCIER!$E$3,IF($A12=3,ECHEANCIER!$E$5,IF($A12<>"RETRAITE","")))) ->  | J12: -120
A13: 9 | B13: =B5+26 -> 2016-02-27 | C13: =ECHEANCIER!C11 -> Prel | D13: =ECHEANCIER!D11 -> ST CHRIST | E13: =ECHEANCIER!E11 -> ASS.VOIT | F13: =IF(AND($A13=9,$E13="ASS.VOIT",OR($A$1="janvier",$A$1="avril",$A$1="juillet",$A$1="octobre")),ECHEANCIER!$F$11,"") ->  | G13: 9810 | K13: =IF($E13="C. PORT LOYER",$F13,0) -> 0 | L13: =IF($E13="C. PORT CHARGES",$F13,0) -> 0 | M13: =IF($E13="DIVERS",$F13,0) -> 0
G14: 9810 | I14: =IF($E14="RECETTES DIVERSES",$F14,0) -> 0 | J14: =IF($E14="DEPENSES",$F14,0) -> 0 | K14: =IF($E14="C. PORT LOYER",$F14,0) -> 0 | L14: =IF($E14="C. PORT CHARGES",$F14,0) -> 0 | M14: =IF($E14="DIVERS",$F14,0) -> 0
G15: 9810 | I15: =IF($E15="RECETTES DIVERSES",$F15,0) -> 0 | J15: 0 | K15: 0 | L15: 0 | M15: 0
G16: 9810 | I16: =IF($E16="RECETTES DIVERSES",$F16,0) -> 0 | J16: 0 | K16: 0 | L16: 0 | M16: 0
G17: 9810 | I17: 0 | J17: 0 | K17: 0 | L17: 0 | M17: 0
G18: =SUM(G17)+SUM(F18) -> 9810 | I18: 0 | J18: 0 | K18: 0 | L18: 0 | M18: 0
F19: =IF($A19="","",IF($A19=2,ECHEANCIER!$E$4,IF($A19=4,ECHEANCIER!$E$6,IF($A19=5,ECHEANCIER!$E$7,IF($A19=6,ECHEANCIER!$E$8,IF($A19=7,ECHEANCIER!$E$9,IF($A19=8,ECHEANCIER!$E$10,""))))))) ->  | G19: 9810 | I19: 0 | J19: =IF($A19="","",IF($A19=2,ECHEANCIER!$E$4,IF($A19=4,ECHEANCIER!$E$6,IF($A19=5,ECHEANCIER!$E$7,IF($A19=6,ECHEANCIER!$E$8,IF($A19=7,ECHEANCIER!$E$9,IF($A19=8,ECHEANCIER!$E$10,""))))))) ->  | K19: 0 | L19: 0 | M19: 0
G20: 9810 | I20: 0 | J20: =IF($A20="","",IF($A20=2,ECHEANCIER!$E$4,IF($A20=4,ECHEANCIER!$E$6,IF($A20=5,ECHEANCIER!$E$7,IF($A20=6,ECHEANCIER!$E$8,IF($A20=7,ECHEANCIER!$E$9,IF($A20=8,ECHEANCIER!$E$10,""))))))) ->  | K20: 0 | L20: 0 | M20: 0
G21: 9810
G22: 9810
G23: 9810
A24: TOTAL MOIS | F24: =SUM(F5:F23) -> 1130 | H24: =SUM(H5:H23) -> 1950 | I24: =SUM(I5:I23) -> 0 | J24: =SUM(J5:J23) -> -820 | K24: 0 | L24: 0 | M24: 0
A25: SOUS TOTAL | G25: =G23 -> 9810 | H25: =H24+H4 -> 3900 | I25: =I24+I4 -> 40 | J25: =J24+J4 -> -1645 | K25: =K24+K4 -> 650 | L25: -135 | M25: =M24+M4 -> -500
A26: TOTAL | H26: =H25+I25 -> 3940 | J26: =J24+J4 -> -1645 | K26: =SUM(K25:L25) -> 515 | M26: =M24+M4 -> -500

Sheet MARS
A1: =MID(CELL("filename",A1),FIND("]",CELL("filename",A1))+1,32) -> MARS
A2: N° SAISIE | B2: JOURS | C2: MODE | D2: TIERS | E2: CATEGORIE | F2: BANQUE POSTALE | H2: RECETTES | J2: DEPENSES | K2: C. PORT | M2: DIVERS
C3: PAIEMENT | F3: DEBIT/CREDIT | G3: SOLDE | H3: RETRAITE | I3: DIVERSES | K3: LOYER | L3: CHARGES
A4: REPORT | B4: 2016-03-01 | G4: =FEVRIER!G25 -> 9810 | H4: =FEVRIER!H25 -> 3900 | I4: =FEVRIER!I25 -> 40 | J4: =FEVRIER!J25 -> -1645 | K4: =FEVRIER!K25 -> 650 | L4: =FEVRIER!L25 -> -135 | M4: =FEVRIER!M25 -> -500
A5: 1 | B5: =B4 -> 2016-03-01 | C5: =ECHEANCIER!C3 -> Vir recu | D5: =ECHEANCIER!D3 -> ARCO | E5: =ECHEANCIER!E3 -> RETRAITE | F5: =IF($B5<=TODAY(),ECHEANCIER!$F3,0) -> 750 | G5: =SUM(G4)+SUM(F5) -> 10560 | H5: =F5 -> 750 | J5: =IF($A5="","",IF($A5=2,ECHEANCIER!$E$4,IF($A5=4,ECHEANCIER!$E$6,IF($A5=5,ECHEANCIER!$E$7,IF($A5=6,ECHEANCIER!$E$8,IF($A5=7,ECHEANCIER!$E$9,IF($A5=8,ECHEANCIER!$E$10,""))))))) -> 
A6: 2 | B6: =B4+4 -> 2016-03-05 | C6: =ECHEANCIER!C4 -> Prel | D6: =ECHEANCIER!D4 -> UNEO | E6: =ECHEANCIER!E4 -> MUTUELLE | F6: =IF($B6<=TODAY(),ECHEANCIER!$F4,0) -> -100 | G6: =SUM(G5)+SUM(F6) -> 10460 | H6: =IF($A6="","",IF($A6=1,ECHEANCIER!$E$3,IF($A6=3,ECHEANCIER!$E$5,IF($A6<>"RETRAITE","")))) ->  | J6: =IF($A6="","",IF($E6="MUTUELLE",$F6,IF($E6="EAUX",$F6,IF($E6="T.HABI",$F6,(IF($E6="T.FONC",$F6,(IF($E6="IMP.REV",$F6,(IF($E6="GAZ-ELEC",$F6,(IF($E6="ASS.VOIT",$F6,0)))))))))))) -> -100
A7: 3 | B7: =B4+9 -> 2016-03-10 | C7: =ECHEANCIER!C5 -> Vir recu | D7: =ECHEANCIER!D5 -> CRAM | E7: =ECHEANCIER!E5 -> RETRAITE | F7: =IF($B7<=TODAY(),ECHEANCIER!$F5,0) -> 1200 | G7: 11660 | H7: =F7 -> 1200 | J7: =IF($A7="","",IF($E7="MUTUELLE",$F7,IF($E7="EAUX",$F7,IF($E7="T.HABI",$F7,(IF($E7="T.FONC",$F7,(IF($E7="IMP.REV",$F7,(IF($E7="GAZ-ELEC",$F7,(IF($E7="ASS.VOIT",$F7,0)))))))))))) -> 0
A8: 4 | B8: =B4+9 -> 2016-03-10 | C8: =ECHEANCIER!C6 -> Prel | D8: =ECHEANCIER!D6 -> A.L.M. | E8: =ECHEANCIER!E6 -> EAUX | F8: =IF($B8<=TODAY(),ECHEANCIER!$F6,0) -> -40 | G8: 11620 | H8: =IF($A8="","",IF($A8=1,ECHEANCIER!$E$3,IF($A8=3,ECHEANCIER!$E$5,IF($A8<>"RETRAITE","")))) ->  | J8: -40
A9: 5 | B9: =B4+14 -> 2016-03-15 | C9: =ECHEANCIER!C7 -> Prel | D9: =ECHEANCIER!D7 -> T.P. | E9: =ECHEANCIER!E7 -> T.HABI | F9: =IF($B9<=TODAY(),ECHEANCIER!$F7,0) -> -100 | G9: 11520 | H9: =IF($A9="","",IF($A9=1,ECHEANCIER!$E$3,IF($A9=3,ECHEANCIER!$E$5,IF($A9<>"RETRAITE","")))) ->  | J9: -100
A10: 6 | B10: =B4+14 -> 2016-03-15 | C10: =ECHEANCIER!C8 -> Prel | D10: =ECHEANCIER!D8 -> T.P. | E10: =ECHEANCIER!E8 -> T.FONC | F10: =IF($B10<=TODAY(),ECHEANCIER!$F8,0) -> -110 | G10: 11410 | H10: =IF($A10="","",IF($A10=1,ECHEANCIER!$E$3,IF($A10=3,ECHEANCIER!$E$5,IF($A10<>"RETRAITE","")))) ->  | J10: -110
A11: 7 | B11: =B4+14 -> 2016-03-15 | C11: =ECHEANCIER!C9 -> Prel | D11: =ECHEANCIER!D9 -> T.P. | E11: =ECHEANCIER!E9 -> IMP.REV | F11: =IF($B11<=TODAY(),ECHEANCIER!$F9,0) -> -350 | G11: 11060 | H11: =IF($A11="","",IF($A11=1,ECHEANCIER!$E$3,IF($A11=3,ECHEANCIER!$E$5,IF($A11<>"RETRAITE","")))) ->  | J11: -350
A12: 8 | B12: =B4+19 -> 2016-03-20 | C12: =ECHEANCIER!C10 -> Prel | D12: =ECHEANCIER!D10 -> ENGIE | E12: =ECHEANCIER!E10 -> GAZ-ELEC | F12: =IF($B12<=TODAY(),ECHEANCIER!$F10,0) -> -120 | G12: 10940 | H12: =IF($A12="","",IF($A12=1,ECHEANCIER!$E$3,IF($A12=3,ECHEANCIER!$E$5,IF($A12<>"RETRAITE","")))) ->  | J12: -120
A13: 9 | B13: =B5+26 -> 2016-03-27 | C13: =ECHEANCIER!C11 -> Prel | D13: =ECHEANCIER!D11 -> ST CHRIST | E13: =ECHEANCIER!E11 -> ASS.VOIT | F13: =IF(AND($A13=9,$E13="ASS.VOIT",OR($A$1="janvier",$A$1="avril",$A$1="juillet",$A$1="octobre")),ECHEANCIER!$F$11,"") ->  | G13: 10940 | K13: =IF($E13="C. PORT LOYER",$F13,0) -> 0 | L13: =IF($E13="C. PORT CHARGES",$F13,0) -> 0 | M13: =IF($E13="DIVERS",$F13,0) -> 0
G14: 10940 | I14: =IF($E14="RECETTES DIVERSES",$F14,0) -> 0 | J14: =IF($E14="DEPENSES",$F14,0) -> 0 | K14: =IF($E14="C. PORT LOYER",$F14,0) -> 0 | L14: =IF($E14="C. PORT CHARGES",$F14,0) -> 0 | M14: =IF($E14="DIVERS",$F14,0) -> 0
G15: 10940 | I15: =IF($E15="RECETTES DIVERSES",$F15,0) -> 0 | J15: 0 | K15: 0 | L15: 0 | M15: 0
G16: 10940 | I16: =IF($E16="RECETTES DIVERSES",$F16,0) -> 0 | J16: 0 | K16: 0 | L16: 0 | M16: 0
G17: 10940 | I17: 0 | J17: 0 | K17: 0 | L17: 0 | M17: 0
G18: =SUM(G17)+SUM(F18) -> 10940 | I18: 0 | J18: 0 | K18: 0 | L18: 0 | M18: 0
F19: =IF($A19="","",IF($A19=2,ECHEANCIER!$E$4,IF($A19=4,ECHEANCIER!$E$6,IF($A19=5,ECHEANCIER!$E$7,IF($A19=6,ECHEANCIER!$E$8,IF($A19=7,ECHEANCIER!$E$9,IF($A19=8,ECHEANCIER!$E$10,""))))))) ->  | G19: =SUM(G18)+SUM(F19) -> 10940 | I19: 0 | J19: =IF($A19="","",IF($A19=2,ECHEANCIER!$E$4,IF($A19=4,ECHEANCIER!$E$6,IF($A19=5,ECHEANCIER!$E$7,IF($A19=6,ECHEANCIER!$E$8,IF($A19=7,ECHEANCIER!$E$9,IF($A19=8,ECHEANCIER!$E$10,""))))))) ->  | K19: 0 | L19: 0 | M19: 0
G20: 10940 | I20: 0 | J20: =IF($A20="","",IF($A20=2,ECHEANCIER!$E$4,IF($A20=4,ECHEANCIER!$E$6,IF($A20=5,ECHEANCIER!$E$7,IF($A20=6,ECHEANCIER!$E$8,IF($A20=7,ECHEANCIER!$E$9,IF($A20=8,ECHEANCIER!$E$10,""))))))) ->  | K20: 0 | L20: 0 | M20: 0
G21: 10940
G22: 10940
G23: 10940
A24: TOTAL MOIS | F24: =SUM(F5:F23) -> 1130 | H24: =SUM(H5:H23) -> 1950 | I24: =SUM(I5:I23) -> 0 | J24: =SUM(J5:J23) -> -820 | K24: 0 | L24: 0 | M24: 0
A25: SOUS TOTAL | G25: =G23 -> 10940 | H25: =H24+H4 -> 5850 | I25: =I24+I4 -> 40 | J25: =J24+J4 -> -2465 | K25: =K24+K4 -> 650 | L25: -135 | M25: =M24+M4 -> -500
A26: TOTAL | H26: =H25+I25 -> 5890 | J26: =J24+J4 -> -2465 | K26: =SUM(K25:L25) -> 515 | M26: =M24+M4 -> -500

Sheet AVRIL
A1: =MID(CELL("filename",A1),FIND("]",CELL("filename",A1))+1,32) -> AVRIL
A2: N° SAISIE | B2: JOURS | C2: MODE | D2: TIERS | E2: CATEGORIE | F2: BANQUE POSTALE | H2: RECETTES | J2: DEPENSES | K2: C. PORT | M2: DIVERS
C3: PAIEMENT | F3: DEBIT/CREDIT | G3: SOLDE | H3: RETRAITE | I3: DIVERSES | K3: LOYER | L3: CHARGES
A4: REPORT | B4: 2016-04-01 | G4: =MARS!G25 -> 10940 | H4: =MARS!H25 -> 5850 | I4: =MARS!I25 -> 40 | J4: =MARS!J25 -> -2465 | K4: =MARS!K25 -> 650 | L4: =MARS!L25 -> -135 | M4: =MARS!M25 -> -500
A5: 1 | B5: =B4 -> 2016-04-01 | C5: =ECHEANCIER!C3 -> Vir recu | D5: =ECHEANCIER!D3 -> ARCO | E5: =ECHEANCIER!E3 -> RETRAITE | F5: =IF($B5<=TODAY(),ECHEANCIER!$F3,0) -> 750 | G5: =SUM(G4)+SUM(F5) -> 11690 | H5: =F5 -> 750 | J5: =IF($A5="","",IF($A5=2,ECHEANCIER!$E$4,IF($A5=4,ECHEANCIER!$E$6,IF($A5=5,ECHEANCIER!$E$7,IF($A5=6,ECHEANCIER!$E$8,IF($A5=7,ECHEANCIER!$E$9,IF($A5=8,ECHEANCIER!$E$10,""))))))) -> 
A6: 2 | B6: =B4+4 -> 2016-04-05 | C6: =ECHEANCIER!C4 -> Prel | D6: =ECHEANCIER!D4 -> UNEO | E6: =ECHEANCIER!E4 -> MUTUELLE | F6: =IF($B6<=TODAY(),ECHEANCIER!$F4,0) -> -100 | G6: =SUM(G5)+SUM(F6) -> 11590 | H6: =IF($A6="","",IF($A6=1,ECHEANCIER!$E$3,IF($A6=3,ECHEANCIER!$E$5,IF($A6<>"RETRAITE","")))) ->  | J6: =IF($A6="","",IF($E6="MUTUELLE",$F6,IF($E6="EAUX",$F6,IF($E6="T.HABI",$F6,(IF($E6="T.FONC",$F6,(IF($E6="IMP.REV",$F6,(IF($E6="GAZ-ELEC",$F6,(IF($E6="ASS.VOIT",$F6,0)))))))))))) -> -100
A7: 3 | B7: =B4+9 -> 2016-04-10 | C7: =ECHEANCIER!C5 -> Vir recu | D7: =ECHEANCIER!D5 -> CRAM | E7: =ECHEANCIER!E5 -> RETRAITE | F7: =IF($B7<=TODAY(),ECHEANCIER!$F5,0) -> 1200 | G7: 12790 | H7: =F7 -> 1200 | J7: =IF($A7="","",IF($E7="MUTUELLE",$F7,IF($E7="EAUX",$F7,IF($E7="T.HABI",$F7,(IF($E7="T.FONC",$F7,(IF($E7="IMP.REV",$F7,(IF($E7="GAZ-ELEC",$F7,(IF($E7="ASS.VOIT",$F7,0)))))))))))) -> 0
A8: 4 | B8: =B4+9 -> 2016-04-10 | C8: =ECHEANCIER!C6 -> Prel | D8: =ECHEANCIER!D6 -> A.L.M. | E8: =ECHEANCIER!E6 -> EAUX | F8: =IF($B8<=TODAY(),ECHEANCIER!$F6,0) -> -40 | G8: 12750 | H8: =IF($A8="","",IF($A8=1,ECHEANCIER!$E$3,IF($A8=3,ECHEANCIER!$E$5,IF($A8<>"RETRAITE","")))) ->  | J8: -40
A9: 5 | B9: =B4+14 -> 2016-04-15 | C9: =ECHEANCIER!C7 -> Prel | D9: =ECHEANCIER!D7 -> T.P. | E9: =ECHEANCIER!E7 -> T.HABI | F9: =IF($B9<=TODAY(),ECHEANCIER!$F7,0) -> -100 | G9: 12650 | H9: =IF($A9="","",IF($A9=1,ECHEANCIER!$E$3,IF($A9=3,ECHEANCIER!$E$5,IF($A9<>"RETRAITE","")))) ->  | J9: -100
A10: 6 | B10: =B4+14 -> 2016-04-15 | C10: =ECHEANCIER!C8 -> Prel | D10: =ECHEANCIER!D8 -> T.P. | E10: =ECHEANCIER!E8 -> T.FONC | F10: =IF($B10<=TODAY(),ECHEANCIER!$F8,0) -> -110 | G10: 12540 | H10: =IF($A10="","",IF($A10=1,ECHEANCIER!$E$3,IF($A10=3,ECHEANCIER!$E$5,IF($A10<>"RETRAITE","")))) ->  | J10: -110
A11: 7 | B11: =B4+14 -> 2016-04-15 | C11: =ECHEANCIER!C9 -> Prel | D11: =ECHEANCIER!D9 -> T.P. | E11: =ECHEANCIER!E9 -> IMP.REV | F11: =IF($B11<=TODAY(),ECHEANCIER!$F9,0) -> -350 | G11: 12190 | H11: =IF($A11="","",IF($A11=1,ECHEANCIER!$E$3,IF($A11=3,ECHEANCIER!$E$5,IF($A11<>"RETRAITE","")))) ->  | J11: -350
A12: 8 | B12: =B4+19 -> 2016-04-20 | C12: =ECHEANCIER!C10 -> Prel | D12: =ECHEANCIER!D10 -> ENGIE | E12: =ECHEANCIER!E10 -> GAZ-ELEC | F12: =IF($B12<=TODAY(),ECHEANCIER!$F10,0) -> -120 | G12: 12070 | H12: =IF($A12="","",IF($A12=1,ECHEANCIER!$E$3,IF($A12=3,ECHEANCIER!$E$5,IF($A12<>"RETRAITE","")))) ->  | J12: -120
A13: 9 | B13: =B5+26 -> 2016-04-27 | C13: =ECHEANCIER!C11 -> Prel | D13: =ECHEANCIER!D11 -> ST CHRIST | E13: =ECHEANCIER!E11 -> ASS.VOIT | F13: =IF(AND($A13=9,$E13="ASS.VOIT",OR($A$1="janvier",$A$1="avril",$A$1="juillet",$A$1="octobre")),ECHEANCIER!$F$11,"") -> -95 | G13: 11975 | J13: -95 | K13: =IF($E13="C. PORT LOYER",$F13,0) -> 0 | L13: =IF($E13="C. PORT CHARGES",$F13,0) -> 0 | M13: =IF($E13="DIVERS",$F13,0) -> 0
G14: 11975 | I14: =IF($E14="RECETTES DIVERSES",$F14,0) -> 0 | J14: =IF($E14="DEPENSES",$F14,0) -> 0 | K14: =IF($E14="C. PORT LOYER",$F14,0) -> 0 | L14: =IF($E14="C. PORT CHARGES",$F14,0) -> 0 | M14: =IF($E14="DIVERS",$F14,0) -> 0
G15: 11975 | I15: =IF($E15="RECETTES DIVERSES",$F15,0) -> 0 | J15: 0 | K15: 0 | L15: 0 | M15: 0
G16: 11975 | I16: =IF($E16="RECETTES DIVERSES",$F16,0) -> 0 | J16: 0 | K16: 0 | L16: 0 | M16: 0
G17: 11975 | I17: 0 | J17: 0 | K17: 0 | L17: 0 | M17: 0
G18: =SUM(G17)+SUM(F18) -> 11975 | I18: 0 | J18: 0 | K18: 0 | L18: 0 | M18: 0
F19: =IF($A19="","",IF($A19=2,ECHEANCIER!$E$4,IF($A19=4,ECHEANCIER!$E$6,IF($A19=5,ECHEANCIER!$E$7,IF($A19=6,ECHEANCIER!$E$8,IF($A19=7,ECHEANCIER!$E$9,IF($A19=8,ECHEANCIER!$E$10,""))))))) ->  | G19: =SUM(G18)+SUM(F19) -> 11975 | I19: 0 | J19: =IF($A19="","",IF($A19=2,ECHEANCIER!$E$4,IF($A19=4,ECHEANCIER!$E$6,IF($A19=5,ECHEANCIER!$E$7,IF($A19=6,ECHEANCIER!$E$8,IF($A19=7,ECHEANCIER!$E$9,IF($A19=8,ECHEANCIER!$E$10,""))))))) ->  | K19: 0 | L19: 0 | M19: 0
G20: 11975 | I20: 0 | J20: =IF($A20="","",IF($A20=2,ECHEANCIER!$E$4,IF($A20=4,ECHEANCIER!$E$6,IF($A20=5,ECHEANCIER!$E$7,IF($A20=6,ECHEANCIER!$E$8,IF($A20=7,ECHEANCIER!$E$9,IF($A20=8,ECHEANCIER!$E$10,""))))))) ->  | K20: 0 | L20: 0 | M20: 0
G21: 11975
G22: 11975
G23: 11975
A24: TOTAL MOIS | F24: =SUM(F5:F23) -> 1035 | H24: =SUM(H5:H23) -> 1950 | I24: =SUM(I5:I23) -> 0 | J24: =SUM(J5:J23) -> -915 | K24: 0 | L24: 0 | M24: 0
A25: SOUS TOTAL | G25: =G23 -> 11975 | H25: =H24+H4 -> 7800 | I25: =I24+I4 -> 40 | J25: =J24+J4 -> -3380 | K25: =K24+K4 -> 650 | L25: -135 | M25: =M24+M4 -> -500
A26: TOTAL | H26: =H25+I25 -> 7840 | J26: =J24+J4 -> -3380 | K26: =SUM(K25:L25) -> 515 | M26: =M24+M4 -> -500

Sheet MAI
A1: =MID(CELL("filename",A1),FIND("]",CELL("filename",A1))+1,32) -> MAI
A2: N° SAISIE | B2: JOURS | C2: MODE | D2: TIERS | E2: CATEGORIE | F2: BANQUE POSTALE | H2: RECETTES | J2: DEPENSES | K2: C. PORT | M2: DIVERS
C3: PAIEMENT | F3: DEBIT/CREDIT | G3: SOLDE | H3: RETRAITE | I3: DIVERSES | K3: LOYER | L3: CHARGES
A4: REPORT | B4: 2016-05-01 | G4: =AVRIL!G25 -> 11975 | H4: =AVRIL!H25 -> 7800 | I4: =AVRIL!I25 -> 40 | J4: =AVRIL!J25 -> -3380 | K4: =AVRIL!K25 -> 650 | L4: =AVRIL!L25 -> -135 | M4: =AVRIL!M25 -> -500
A5: 1 | B5: =B4 -> 2016-05-01 | C5: =ECHEANCIER!C3 -> Vir recu | D5: =ECHEANCIER!D3 -> ARCO | E5: =ECHEANCIER!E3 -> RETRAITE | F5: =IF($B5<=TODAY(),ECHEANCIER!$F3,0) -> 750 | G5: =SUM(G4)+SUM(F5) -> 12725 | H5: =F5 -> 750 | J5: =IF($A5="","",IF($A5=2,ECHEANCIER!$E$4,IF($A5=4,ECHEANCIER!$E$6,IF($A5=5,ECHEANCIER!$E$7,IF($A5=6,ECHEANCIER!$E$8,IF($A5=7,ECHEANCIER!$E$9,IF($A5=8,ECHEANCIER!$E$10,""))))))) -> 
A6: 2 | B6: =B4+4 -> 2016-05-05 | C6: =ECHEANCIER!C4 -> Prel | D6: =ECHEANCIER!D4 -> UNEO | E6: =ECHEANCIER!E4 -> MUTUELLE | F6: =IF($B6<=TODAY(),ECHEANCIER!$F4,0) -> -100 | G6: =SUM(G5)+SUM(F6) -> 12625 | H6: =IF($A6="","",IF($A6=1,ECHEANCIER!$E$3,IF($A6=3,ECHEANCIER!$E$5,IF($A6<>"RETRAITE","")))) ->  | J6: =IF($A6="","",IF($E6="MUTUELLE",$F6,IF($E6="EAUX",$F6,IF($E6="T.HABI",$F6,(IF($E6="T.FONC",$F6,(IF($E6="IMP.REV",$F6,(IF($E6="GAZ-ELEC",$F6,(IF($E6="ASS.VOIT",$F6,0)))))))))))) -> -100
A7: 3 | B7: =B4+9 -> 2016-05-10 | C7: =ECHEANCIER!C5 -> Vir recu | D7: =ECHEANCIER!D5 -> CRAM | E7: =ECHEANCIER!E5 -> RETRAITE | F7: =IF($B7<=TODAY(),ECHEANCIER!$F5,0) -> 1200 | G7: 13825 | H7: =F7 -> 1200 | J7: =IF($A7="","",IF($E7="MUTUELLE",$F7,IF($E7="EAUX",$F7,IF($E7="T.HABI",$F7,(IF($E7="T.FONC",$F7,(IF($E7="IMP.REV",$F7,(IF($E7="GAZ-ELEC",$F7,(IF($E7="ASS.VOIT",$F7,0)))))))))))) -> 0
A8: 4 | B8: =B4+9 -> 2016-05-10 | C8: =ECHEANCIER!C6 -> Prel | D8: =ECHEANCIER!D6 -> A.L.M. | E8: =ECHEANCIER!E6 -> EAUX | F8: =IF($B8<=TODAY(),ECHEANCIER!$F6,0) -> -40 | G8: 13785 | H8: =IF($A8="","",IF($A8=1,ECHEANCIER!$E$3,IF($A8=3,ECHEANCIER!$E$5,IF($A8<>"RETRAITE","")))) ->  | J8: -40
A9: 5 | B9: =B4+14 -> 2016-05-15 | C9: =ECHEANCIER!C7 -> Prel | D9: =ECHEANCIER!D7 -> T.P. | E9: =ECHEANCIER!E7 -> T.HABI | F9: =IF($B9<=TODAY(),ECHEANCIER!$F7,0) -> -100 | G9: 13685 | H9: =IF($A9="","",IF($A9=1,ECHEANCIER!$E$3,IF($A9=3,ECHEANCIER!$E$5,IF($A9<>"RETRAITE","")))) ->  | J9: -100
A10: 6 | B10: =B4+14 -> 2016-05-15 | C10: =ECHEANCIER!C8 -> Prel | D10: =ECHEANCIER!D8 -> T.P. | E10: =ECHEANCIER!E8 -> T.FONC | F10: =IF($B10<=TODAY(),ECHEANCIER!$F8,0) -> -110 | G10: 13575 | H10: =IF($A10="","",IF($A10=1,ECHEANCIER!$E$3,IF($A10=3,ECHEANCIER!$E$5,IF($A10<>"RETRAITE","")))) ->  | J10: -110
A11: 7 | B11: =B4+14 -> 2016-05-15 | C11: =ECHEANCIER!C9 -> Prel | D11: =ECHEANCIER!D9 -> T.P. | E11: =ECHEANCIER!E9 -> IMP.REV | F11: =IF($B11<=TODAY(),ECHEANCIER!$F9,0) -> -350 | G11: 13225 | H11: =IF($A11="","",IF($A11=1,ECHEANCIER!$E$3,IF($A11=3,ECHEANCIER!$E$5,IF($A11<>"RETRAITE","")))) ->  | J11: -350
A12: 8 | B12: =B4+19 -> 2016-05-20 | C12: =ECHEANCIER!C10 -> Prel | D12: =ECHEANCIER!D10 -> ENGIE | E12: =ECHEANCIER!E10 -> GAZ-ELEC | F12: =IF($B12<=TODAY(),ECHEANCIER!$F10,0) -> -120 | G12: 13105 | H12: =IF($A12="","",IF($A12=1,ECHEANCIER!$E$3,IF($A12=3,ECHEANCIER!$E$5,IF($A12<>"RETRAITE","")))) ->  | J12: -120
A13: 9 | B13: =B5+26 -> 2016-05-27 | C13: =ECHEANCIER!C11 -> Prel | D13: =ECHEANCIER!D11 -> ST CHRIST | E13: =ECHEANCIER!E11 -> ASS.VOIT | F13: =IF(AND($A13=9,$E13="ASS.VOIT",OR($A$1="janvier",$A$1="avril",$A$1="juillet",$A$1="octobre")),ECHEANCIER!$F$11,"") ->  | G13: 13105 | K13: =IF($E13="C. PORT LOYER",$F13,0) -> 0 | L13: =IF($E13="C. PORT CHARGES",$F13,0) -> 0 | M13: =IF($E13="DIVERS",$F13,0) -> 0
G14: 13105 | I14: =IF($E14="RECETTES DIVERSES",$F14,0) -> 0 | J14: =IF($E14="DEPENSES",$F14,0) -> 0 | K14: =IF($E14="C. PORT LOYER",$F14,0) -> 0 | L14: =IF($E14="C. PORT CHARGES",$F14,0) -> 0 | M14: =IF($E14="DIVERS",$F14,0) -> 0
G15: 13105 | I15: =IF($E15="RECETTES DIVERSES",$F15,0) -> 0 | J15: 0 | K15: 0 | L15: 0 | M15: 0
G16: 13105 | I16: =IF($E16="RECETTES DIVERSES",$F16,0) -> 0 | J16: 0 | K16: 0 | L16: 0 | M16: 0
G17: 13105 | I17: 0 | J17: 0 | K17: 0 | L17: 0 | M17: 0
G18: =SUM(G17)+SUM(F18) -> 13105 | I18: 0 | J18: 0 | K18: 0 | L18: 0 | M18: 0
F19: =IF($A19="","",IF($A19=2,ECHEANCIER!$E$4,IF($A19=4,ECHEANCIER!$E$6,IF($A19=5,ECHEANCIER!$E$7,IF($A19=6,ECHEANCIER!$E$8,IF($A19=7,ECHEANCIER!$E$9,IF($A19=8,ECHEANCIER!$E$10,""))))))) ->  | G19: =SUM(G18)+SUM(F19) -> 13105 | I19: 0 | J19: =IF($A19="","",IF($A19=2,ECHEANCIER!$E$4,IF($A19=4,ECHEANCIER!$E$6,IF($A19=5,ECHEANCIER!$E$7,IF($A19=6,ECHEANCIER!$E$8,IF($A19=7,ECHEANCIER!$E$9,IF($A19=8,ECHEANCIER!$E$10,""))))))) ->  | K19: 0 | L19: 0 | M19: 0
G20: 13105 | I20: 0 | J20: =IF($A20="","",IF($A20=2,ECHEANCIER!$E$4,IF($A20=4,ECHEANCIER!$E$6,IF($A20=5,ECHEANCIER!$E$7,IF($A20=6,ECHEANCIER!$E$8,IF($A20=7,ECHEANCIER!$E$9,IF($A20=8,ECHEANCIER!$E$10,""))))))) ->  | K20: 0 | L20: 0 | M20: 0
G21: 13105
G22: 13105
G23: 13105
A24: TOTAL MOIS | F24: =SUM(F5:F23) -> 1130 | H24: =SUM(H5:H23) -> 1950 | I24: =SUM(I5:I23) -> 0 | J24: =SUM(J5:J23) -> -820 | K24: 0 | L24: 0 | M24: 0
A25: SOUS TOTAL | G25: =G23 -> 13105 | H25: =H24+H4 -> 9750 | I25: =I24+I4 -> 40 | J25: =J24+J4 -> -4200 | K25: =K24+K4 -> 650 | L25: -135 | M25: =M24+M4 -> -500
A26: TOTAL | H26: =H25+I25 -> 9790 | J26: =J24+J4 -> -4200 | K26: =SUM(K25:L25) -> 515 | M26: =M24+M4 -> -500

Sheet JUIN
A1: =MID(CELL("filename",A1),FIND("]",CELL("filename",A1))+1,32) -> JUIN
A2: N° SAISIE | B2: JOURS | C2: MODE | D2: TIERS | E2: CATEGORIE | F2: BANQUE POSTALE | H2: RECETTES | J2: DEPENSES | K2: C. PORT | M2: DIVERS
C3: PAIEMENT | F3: DEBIT/CREDIT | G3: SOLDE | H3: RETRAITE | I3: DIVERSES | K3: LOYER | L3: CHARGES
A4: REPORT | B4: 2016-06-01 | G4: =MAI!G25 -> 13105 | H4: =MAI!H25 -> 9750 | I4: =MAI!I25 -> 40 | J4: =MAI!J25 -> -4200 | K4: =MAI!K25 -> 650 | L4: =MAI!L25 -> -135 | M4: =MAI!M25 -> -500
A5: 1 | B5: =B4 -> 2016-06-01 | C5: =ECHEANCIER!C3 -> Vir recu | D5: =ECHEANCIER!D3 -> ARCO | E5: =ECHEANCIER!E3 -> RETRAITE | F5: =IF($B5<=TODAY(),ECHEANCIER!$F3,0) -> 750 | G5: =SUM(G4)+SUM(F5) -> 13855 | H5: =F5 -> 750 | J5: =IF($A5="","",IF($A5=2,ECHEANCIER!$E$4,IF($A5=4,ECHEANCIER!$E$6,IF($A5=5,ECHEANCIER!$E$7,IF($A5=6,ECHEANCIER!$E$8,IF($A5=7,ECHEANCIER!$E$9,IF($A5=8,ECHEANCIER!$E$10,""))))))) -> 
A6: 2 | B6: =B4+1 -> 2016-06-02 | C6: =ECHEANCIER!C4 -> Prel | D6: =ECHEANCIER!D4 -> UNEO | E6: =ECHEANCIER!E4 -> MUTUELLE | F6: =IF($B6<=TODAY(),ECHEANCIER!$F4,0) -> -100 | G6: =SUM(G5)+SUM(F6) -> 13755 | H6: =IF($A6="","",IF($A6=1,ECHEANCIER!$E$3,IF($A6=3,ECHEANCIER!$E$5,IF($A6<>"RETRAITE","")))) ->  | J6: =IF($A6="","",IF($E6="MUTUELLE",$F6,IF($E6="EAUX",$F6,IF($E6="T.HABI",$F6,(IF($E6="T.FONC",$F6,(IF($E6="IMP.REV",$F6,(IF($E6="GAZ-ELEC",$F6,(IF($E6="ASS.VOIT",$F6,0)))))))))))) -> -100
A7: 3 | B7: =B4+9 -> 2016-06-10 | C7: =ECHEANCIER!C5 -> Vir recu | D7: =ECHEANCIER!D5 -> CRAM | E7: =ECHEANCIER!E5 -> RETRAITE | F7: =IF($B7<=TODAY(),ECHEANCIER!$F5,0) -> 0 | G7: 13755 | H7: =F7 -> 0 | J7: =IF($A7="","",IF($E7="MUTUELLE",$F7,IF($E7="EAUX",$F7,IF($E7="T.HABI",$F7,(IF($E7="T.FONC",$F7,(IF($E7="IMP.REV",$F7,(IF($E7="GAZ-ELEC",$F7,(IF($E7="ASS.VOIT",$F7,0)))))))))))) -> 0
A8: 4 | B8: =B4+9 -> 2016-06-10 | C8: =ECHEANCIER!C6 -> Prel | D8: =ECHEANCIER!D6 -> A.L.M. | E8: =ECHEANCIER!E6 -> EAUX | F8: =IF($B8<=TODAY(),ECHEANCIER!$F6,0) -> 0 | G8: 13755 | H8: =IF($A8="","",IF($A8=1,ECHEANCIER!$E$3,IF($A8=3,ECHEANCIER!$E$5,IF($A8<>"RETRAITE","")))) ->  | J8: 0
A9: 5 | B9: =B4+14 -> 2016-06-15 | C9: =ECHEANCIER!C7 -> Prel | D9: =ECHEANCIER!D7 -> T.P. | E9: =ECHEANCIER!E7 -> T.HABI | F9: =IF($B9<=TODAY(),ECHEANCIER!$F7,0) -> 0 | G9: 13755 | H9: =IF($A9="","",IF($A9=1,ECHEANCIER!$E$3,IF($A9=3,ECHEANCIER!$E$5,IF($A9<>"RETRAITE","")))) ->  | J9: 0
A10: 6 | B10: =B4+14 -> 2016-06-15 | C10: =ECHEANCIER!C8 -> Prel | D10: =ECHEANCIER!D8 -> T.P. | E10: =ECHEANCIER!E8 -> T.FONC | F10: =IF($B10<=TODAY(),ECHEANCIER!$F8,0) -> 0 | G10: 13755 | H10: =IF($A10="","",IF($A10=1,ECHEANCIER!$E$3,IF($A10=3,ECHEANCIER!$E$5,IF($A10<>"RETRAITE","")))) ->  | J10: 0
A11: 7 | B11: =B4+14 -> 2016-06-15 | C11: =ECHEANCIER!C9 -> Prel | D11: =ECHEANCIER!D9 -> T.P. | E11: =ECHEANCIER!E9 -> IMP.REV | F11: =IF($B11<=TODAY(),ECHEANCIER!$F9,0) -> 0 | G11: 13755 | H11: =IF($A11="","",IF($A11=1,ECHEANCIER!$E$3,IF($A11=3,ECHEANCIER!$E$5,IF($A11<>"RETRAITE","")))) ->  | J11: 0
A12: 8 | B12: =B4+19 -> 2016-06-20 | C12: =ECHEANCIER!C10 -> Prel | D12: =ECHEANCIER!D10 -> ENGIE | E12: =ECHEANCIER!E10 -> GAZ-ELEC | F12: =IF($B12<=TODAY(),ECHEANCIER!$F10,0) -> 0 | G12: 13755 | H12: =IF($A12="","",IF($A12=1,ECHEANCIER!$E$3,IF($A12=3,ECHEANCIER!$E$5,IF($A12<>"RETRAITE","")))) ->  | J12: 0
A13: 9 | B13: =B5+26 -> 2016-06-27 | C13: =ECHEANCIER!C11 -> Prel | D13: =ECHEANCIER!D11 -> ST CHRIST | E13: =ECHEANCIER!E11 -> ASS.VOIT | F13: =IF(AND($A13=9,$E13="ASS.VOIT",OR($A$1="janvier",$A$1="avril",$A$1="juillet",$A$1="octobre")),ECHEANCIER!$F$11,"") ->  | G13: 13755 | K13: =IF($E13="C. PORT LOYER",$F13,0) -> 0 | L13: =IF($E13="C. PORT CHARGES",$F13,0) -> 0 | M13: =IF($E13="DIVERS",$F13,0) -> 0
G14: 13755 | I14: =IF($E14="RECETTES DIVERSES",$F14,0) -> 0 | J14: =IF($E14="DEPENSES",$F14,0) -> 0 | K14: =IF($E14="C. PORT LOYER",$F14,0) -> 0 | L14: =IF($E14="C. PORT CHARGES",$F14,0) -> 0 | M14: =IF($E14="DIVERS",$F14,0) -> 0
G15: 13755 | I15: =IF($E15="RECETTES DIVERSES",$F15,0) -> 0 | J15: 0 | K15: 0 | L15: 0 | M15: 0
G16: 13755 | I16: =IF($E16="RECETTES DIVERSES",$F16,0) -> 0 | J16: 0 | K16: 0 | L16: 0 | M16: 0
G17: 13755 | I17: 0 | J17: 0 | K17: 0 | L17: 0 | M17: 0
G18: =SUM(G17)+SUM(F18) -> 13755 | I18: 0 | J18: 0 | K18: 0 | L18: 0 | M18: 0
F19: =IF($A19="","",IF($A19=2,ECHEANCIER!$E$4,IF($A19=4,ECHEANCIER!$E$6,IF($A19=5,ECHEANCIER!$E$7,IF($A19=6,ECHEANCIER!$E$8,IF($A19=7,ECHEANCIER!$E$9,IF($A19=8,ECHEANCIER!$E$10,""))))))) ->  | G19: =SUM(G18)+SUM(F19) -> 13755 | I19: 0 | J19: =IF($A19="","",IF($A19=2,ECHEANCIER!$E$4,IF($A19=4,ECHEANCIER!$E$6,IF($A19=5,ECHEANCIER!$E$7,IF($A19=6,ECHEANCIER!$E$8,IF($A19=7,ECHEANCIER!$E$9,IF($A19=8,ECHEANCIER!$E$10,""))))))) ->  | K19: 0 | L19: 0 | M19: 0
G20: 13755 | I20: 0 | J20: =IF($A20="","",IF($A20=2,ECHEANCIER!$E$4,IF($A20=4,ECHEANCIER!$E$6,IF($A20=5,ECHEANCIER!$E$7,IF($A20=6,ECHEANCIER!$E$8,IF($A20=7,ECHEANCIER!$E$9,IF($A20=8,ECHEANCIER!$E$10,""))))))) ->  | K20: 0 | L20: 0 | M20: 0
G21: 13755
G22: 13755
G23: 13755
A24: TOTAL MOIS | F24: =SUM(F5:F23) -> 650 | H24: =SUM(H5:H23) -> 750 | I24: =SUM(I5:I23) -> 0 | J24: =SUM(J5:J23) -> -100 | K24: 0 | L24: 0 | M24: 0
A25: SOUS TOTAL | G25: =G23 -> 13755 | H25: =H24+H4 -> 10500 | I25: =I24+I4 -> 40 | J25: =J24+J4 -> -4300 | K25: =K24+K4 -> 650 | L25: -135 | M25: =M24+M4 -> -500
A26: TOTAL | H26: =H25+I25 -> 10540 | J26: =J24+J4 -> -4300 | K26: =SUM(K25:L25) -> 515 | M26: =M24+M4 -> -500

Sheet JUILLET
A1: =MID(CELL("filename",A1),FIND("]",CELL("filename",A1))+1,32) -> JUILLET
A2: N° SAISIE | B2: JOURS | C2: MODE | D2: TIERS | E2: CATEGORIE | F2: BANQUE POSTALE | H2: RECETTES | J2: DEPENSES | K2: C. PORT | M2: DIVERS
C3: PAIEMENT | F3: DEBIT/CREDIT | G3: SOLDE | H3: RETRAITE | I3: DIVERSES | K3: LOYER | L3: CHARGES
A4: REPORT | B4: 2016-07-01 | G4: =JUIN!G25 -> 13755 | H4: =JUIN!H25 -> 10500 | I4: =JUIN!I25 -> 40 | J4: =JUIN!J25 -> -4300 | K4: =JUIN!K25 -> 650 | L4: =JUIN!L25 -> -135 | M4: =JUIN!M25 -> -500
A5: 1 | B5: =B4 -> 2016-07-01 | C5: =ECHEANCIER!C3 -> Vir recu | D5: =ECHEANCIER!D3 -> ARCO | E5: =ECHEANCIER!E3 -> RETRAITE | F5: =IF($B5<=TODAY(),ECHEANCIER!$F3,0) -> 0 | G5: =SUM(G4)+SUM(F5) -> 13755 | H5: =F5 -> 0 | J5: =IF($A5="","",IF($A5=2,ECHEANCIER!$E$4,IF($A5=4,ECHEANCIER!$E$6,IF($A5=5,ECHEANCIER!$E$7,IF($A5=6,ECHEANCIER!$E$8,IF($A5=7,ECHEANCIER!$E$9,IF($A5=8,ECHEANCIER!$E$10,""))))))) -> 
A6: 2 | B6: =B4+4 -> 2016-07-05 | C6: =ECHEANCIER!C4 -> Prel | D6: =ECHEANCIER!D4 -> UNEO | E6: =ECHEANCIER!E4 -> MUTUELLE | F6: =IF($B6<=TODAY(),ECHEANCIER!$F4,0) -> 0 | G6: =SUM(G5)+SUM(F6) -> 13755 | H6: =IF($A6="","",IF($A6=1,ECHEANCIER!$E$3,IF($A6=3,ECHEANCIER!$E$5,IF($A6<>"RETRAITE","")))) ->  | J6: =F6 -> 0
A7: 3 | B7: =B4+9 -> 2016-07-10 | C7: =ECHEANCIER!C5 -> Vir recu | D7: =ECHEANCIER!D5 -> CRAM | E7: =ECHEANCIER!E5 -> RETRAITE | F7: =IF($B7<=TODAY(),ECHEANCIER!$F5,0) -> 0 | G7: 13755 | H7: =F7 -> 0 | J7: =F7 -> 0
A8: 4 | B8: =B4+9 -> 2016-07-10 | C8: =ECHEANCIER!C6 -> Prel | D8: =ECHEANCIER!D6 -> A.L.M. | E8: =ECHEANCIER!E6 -> EAUX | F8: =IF($B8<=TODAY(),ECHEANCIER!$F6,0) -> 0 | G8: 13755 | H8: =IF($A8="","",IF($A8=1,ECHEANCIER!$E$3,IF($A8=3,ECHEANCIER!$E$5,IF($A8<>"RETRAITE","")))) ->  | J8: 0
A9: 5 | B9: =B4+14 -> 2016-07-15 | C9: =ECHEANCIER!C7 -> Prel | D9: =ECHEANCIER!D7 -> T.P. | E9: =ECHEANCIER!E7 -> T.HABI | F9: =IF($B9<=TODAY(),ECHEANCIER!$F7,0) -> 0 | G9: 13755 | H9: =IF($A9="","",IF($A9=1,ECHEANCIER!$E$3,IF($A9=3,ECHEANCIER!$E$5,IF($A9<>"RETRAITE","")))) ->  | J9: 0
A10: 6 | B10: =B4+14 -> 2016-07-15 | C10: =ECHEANCIER!C8 -> Prel | D10: =ECHEANCIER!D8 -> T.P. | E10: =ECHEANCIER!E8 -> T.FONC | F10: =IF($B10<=TODAY(),ECHEANCIER!$F8,0) -> 0 | G10: 13755 | H10: =IF($A10="","",IF($A10=1,ECHEANCIER!$E$3,IF($A10=3,ECHEANCIER!$E$5,IF($A10<>"RETRAITE","")))) ->  | J10: 0
A11: 7 | B11: =B4+14 -> 2016-07-15 | C11: =ECHEANCIER!C9 -> Prel | D11: =ECHEANCIER!D9 -> T.P. | E11: =ECHEANCIER!E9 -> IMP.REV | F11: =IF($B11<=TODAY(),ECHEANCIER!$F9,0) -> 0 | G11: 13755 | H11: =IF($A11="","",IF($A11=1,ECHEANCIER!$E$3,IF($A11=3,ECHEANCIER!$E$5,IF($A11<>"RETRAITE","")))) ->  | J11: 0
A12: 8 | B12: =B4+19 -> 2016-07-20 | C12: =ECHEANCIER!C10 -> Prel | D12: =ECHEANCIER!D10 -> ENGIE | E12: =ECHEANCIER!E10 -> GAZ-ELEC | F12: =IF($B12<=TODAY(),ECHEANCIER!$F10,0) -> 0 | G12: 13755 | H12: =IF($A12="","",IF($A12=1,ECHEANCIER!$E$3,IF($A12=3,ECHEANCIER!$E$5,IF($A12<>"RETRAITE","")))) ->  | J12: 0
A13: 9 | B13: =B5+26 -> 2016-07-27 | C13: =ECHEANCIER!C11 -> Prel | D13: =ECHEANCIER!D11 -> ST CHRIST | E13: =ECHEANCIER!E11 -> ASS.VOIT | F13: =IF(AND($A13=9,$E13="ASS.VOIT",OR($A$1="janvier",$A$1="avril",$A$1="juillet",$A$1="octobre")),ECHEANCIER!$F$11,"") -> -95 | G13: 13660 | J13: -95 | K13: =IF($E13="C. PORT LOYER",$F13,0) -> 0 | L13: =IF($E13="C. PORT CHARGES",$F13,0) -> 0 | M13: =IF($E13="DIVERS",$F13,0) -> 0
G14: 13660 | I14: =IF($E14="RECETTES DIVERSES",$F14,0) -> 0 | J14: =IF($E14="DEPENSES",$F14,0) -> 0 | K14: =IF($E14="C. PORT LOYER",$F14,0) -> 0 | L14: =IF($E14="C. PORT CHARGES",$F14,0) -> 0 | M14: =IF($E14="DIVERS",$F14,0) -> 0
G15: 13660 | I15: =IF($E15="RECETTES DIVERSES",$F15,0) -> 0 | J15: 0 | K15: 0 | L15: 0 | M15: 0
G16: 13660 | I16: =IF($E16="RECETTES DIVERSES",$F16,0) -> 0 | J16: 0 | K16: 0 | L16: 0 | M16: 0
G17: 13660 | I17: 0 | J17: 0 | K17: 0 | L17: 0 | M17: 0
G18: =SUM(G17)+SUM(F18) -> 13660 | I18: 0 | J18: 0 | K18: 0 | L18: 0 | M18: 0
F19: =IF($A19="","",IF($A19=2,ECHEANCIER!$E$4,IF($A19=4,ECHEANCIER!$E$6,IF($A19=5,ECHEANCIER!$E$7,IF($A19=6,ECHEANCIER!$E$8,IF($A19=7,ECHEANCIER!$E$9,IF($A19=8,ECHEANCIER!$E$10,""))))))) ->  | G19: =SUM(G18)+SUM(F19) -> 13660 | I19: 0 | J19: =IF($A19="","",IF($A19=2,ECHEANCIER!$E$4,IF($A19=4,ECHEANCIER!$E$6,IF($A19=5,ECHEANCIER!$E$7,IF($A19=6,ECHEANCIER!$E$8,IF($A19=7,ECHEANCIER!$E$9,IF($A19=8,ECHEANCIER!$E$10,""))))))) ->  | K19: 0 | L19: 0 | M19: 0
G20: 13660 | I20: 0 | J20: =IF($A20="","",IF($A20=2,ECHEANCIER!$E$4,IF($A20=4,ECHEANCIER!$E$6,IF($A20=5,ECHEANCIER!$E$7,IF($A20=6,ECHEANCIER!$E$8,IF($A20=7,ECHEANCIER!$E$9,IF($A20=8,ECHEANCIER!$E$10,""))))))) ->  | K20: 0 | L20: 0 | M20: 0
G21: 13660
G22: 13660
G23: 13660
A24: TOTAL MOIS | H24: =SUM(H5:H23) -> 0 | I24: =SUM(I5:I23) -> 0 | J24: =SUM(J5:J23) -> -95 | K24: 0 | L24: 0 | M24: 0
A25: SOUS TOTAL | G25: =G23 -> 13660 | H25: =H24+H4 -> 10500 | I25: =I24+I4 -> 40 | J25: =J24+J4 -> -4395 | K25: =K24+K4 -> 650 | L25: -135 | M25: =M24+M4 -> -500
A26: TOTAL | H26: =H25+I25 -> 10540 | J26: =J24+J4 -> -4395 | K26: =SUM(K25:L25) -> 515 | M26: =M24+M4 -> -500

Sheet AOUT
A1: =MID(CELL("filename",A1),FIND("]",CELL("filename",A1))+1,32) -> AOUT
A2: N° SAISIE | B2: JOURS | C2: MODE | D2: TIERS | E2: CATEGORIE | F2: BANQUE POSTALE | H2: RECETTES | J2: DEPENSES | K2: C. PORT | M2: DIVERS
C3: PAIEMENT | F3: DEBIT/CREDIT | G3: SOLDE | H3: RETRAITE | I3: DIVERSES | K3: LOYER | L3: CHARGES
A4: REPORT | B4: 2016-08-01 | G4: =JUILLET!G25 -> 13660 | H4: =JUILLET!H25 -> 10500 | I4: =JUILLET!I25 -> 40 | J4: =JUILLET!J25 -> -4395 | K4: =JUILLET!K25 -> 650 | L4: =JUILLET!L25 -> -135 | M4: =JUILLET!M25 -> -500
A5: 1 | B5: =B4 -> 2016-08-01 | C5: =ECHEANCIER!C3 -> Vir recu | D5: =ECHEANCIER!D3 -> ARCO | E5: =ECHEANCIER!E3 -> RETRAITE | F5: =IF($B5<=TODAY(),ECHEANCIER!$F3,0) -> 0 | G5: =SUM(G4)+SUM(F5) -> 13660 | H5: =F5 -> 0 | J5: =IF($A5="","",IF($A5=2,ECHEANCIER!$E$4,IF($A5=4,ECHEANCIER!$E$6,IF($A5=5,ECHEANCIER!$E$7,IF($A5=6,ECHEANCIER!$E$8,IF($A5=7,ECHEANCIER!$E$9,IF($A5=8,ECHEANCIER!$E$10,""))))))) -> 
A6: 2 | B6: =B4+4 -> 2016-08-05 | C6: =ECHEANCIER!C4 -> Prel | D6: =ECHEANCIER!D4 -> UNEO | E6: =ECHEANCIER!E4 -> MUTUELLE | F6: =IF($B6<=TODAY(),ECHEANCIER!$F4,0) -> 0 | G6: =SUM(G5)+SUM(F6) -> 13660 | H6: =IF($A6="","",IF($A6=1,ECHEANCIER!$E$3,IF($A6=3,ECHEANCIER!$E$5,IF($A6<>"RETRAITE","")))) ->  | J6: =F6 -> 0
A7: 3 | B7: =B4+9 -> 2016-08-10 | C7: =ECHEANCIER!C5 -> Vir recu | D7: =ECHEANCIER!D5 -> CRAM | E7: =ECHEANCIER!E5 -> RETRAITE | F7: =IF($B7<=TODAY(),ECHEANCIER!$F5,0) -> 0 | G7: 13660 | H7: =F7 -> 0 | J7: =F7 -> 0
A8: 4 | B8: =B4+9 -> 2016-08-10 | C8: =ECHEANCIER!C6 -> Prel | D8: =ECHEANCIER!D6 -> A.L.M. | E8: =ECHEANCIER!E6 -> EAUX | F8: =IF($B8<=TODAY(),ECHEANCIER!$F6,0) -> 0 | G8: 13660 | H8: =IF($A8="","",IF($A8=1,ECHEANCIER!$E$3,IF($A8=3,ECHEANCIER!$E$5,IF($A8<>"RETRAITE","")))) ->  | J8: 0
A9: 5 | B9: =B4+14 -> 2016-08-15 | C9: =ECHEANCIER!C7 -> Prel | D9: =ECHEANCIER!D7 -> T.P. | E9: =ECHEANCIER!E7 -> T.HABI | F9: =IF($B9<=TODAY(),ECHEANCIER!$F7,0) -> 0 | G9: 13660 | H9: =IF($A9="","",IF($A9=1,ECHEANCIER!$E$3,IF($A9=3,ECHEANCIER!$E$5,IF($A9<>"RETRAITE","")))) ->  | J9: 0
A10: 6 | B10: =B4+14 -> 2016-08-15 | C10: =ECHEANCIER!C8 -> Prel | D10: =ECHEANCIER!D8 -> T.P. | E10: =ECHEANCIER!E8 -> T.FONC | F10: =IF($B10<=TODAY(),ECHEANCIER!$F8,0) -> 0 | G10: 13660 | H10: =IF($A10="","",IF($A10=1,ECHEANCIER!$E$3,IF($A10=3,ECHEANCIER!$E$5,IF($A10<>"RETRAITE","")))) ->  | J10: 0
A11: 7 | B11: =B4+14 -> 2016-08-15 | C11: =ECHEANCIER!C9 -> Prel | D11: =ECHEANCIER!D9 -> T.P. | E11: =ECHEANCIER!E9 -> IMP.REV | F11: =IF($B11<=TODAY(),ECHEANCIER!$F9,0) -> 0 | G11: 13660 | H11: =IF($A11="","",IF($A11=1,ECHEANCIER!$E$3,IF($A11=3,ECHEANCIER!$E$5,IF($A11<>"RETRAITE","")))) ->  | J11: 0
A12: 8 | B12: =B4+19 -> 2016-08-20 | C12: =ECHEANCIER!C10 -> Prel | D12: =ECHEANCIER!D10 -> ENGIE | E12: =ECHEANCIER!E10 -> GAZ-ELEC | F12: =IF($B12<=TODAY(),ECHEANCIER!$F10,0) -> 0 | G12: 13660 | H12: =IF($A12="","",IF($A12=1,ECHEANCIER!$E$3,IF($A12=3,ECHEANCIER!$E$5,IF($A12<>"RETRAITE","")))) ->  | J12: 0
A13: 9 | B13: =B5+26 -> 2016-08-27 | C13: =ECHEANCIER!C11 -> Prel | D13: =ECHEANCIER!D11 -> ST CHRIST | E13: =ECHEANCIER!E11 -> ASS.VOIT | F13: =IF(AND($A13=9,$E13="ASS.VOIT",OR($A$1="janvier",$A$1="avril",$A$1="juillet",$A$1="octobre")),ECHEANCIER!$F$11,"") ->  | G13: 13660 | K13: =IF($E13="C. PORT LOYER",$F13,0) -> 0 | L13: =IF($E13="C. PORT CHARGES",$F13,0) -> 0 | M13: =IF($E13="DIVERS",$F13,0) -> 0
G14: 13660 | I14: =IF($E14="RECETTES DIVERSES",$F14,0) -> 0 | J14: =IF($E14="DEPENSES",$F14,0) -> 0 | K14: =IF($E14="C. PORT LOYER",$F14,0) -> 0 | L14: =IF($E14="C. PORT CHARGES",$F14,0) -> 0 | M14: =IF($E14="DIVERS",$F14,0) -> 0
G15: 13660 | I15: =IF($E15="RECETTES DIVERSES",$F15,0) -> 0 | J15: 0 | K15: 0 | L15: 0 | M15: 0
G16: 13660 | I16: =IF($E16="RECETTES DIVERSES",$F16,0) -> 0 | J16: 0 | K16: 0 | L16: 0 | M16: 0
G17: 13660 | I17: 0 | J17: 0 | K17: 0 | L17: 0 | M17: 0
G18: =SUM(G17)+SUM(F18) -> 13660 | I18: 0 | J18: 0 | K18: 0 | L18: 0 | M18: 0
F19: =IF($A19="","",IF($A19=2,ECHEANCIER!$E$4,IF($A19=4,ECHEANCIER!$E$6,IF($A19=5,ECHEANCIER!$E$7,IF($A19=6,ECHEANCIER!$E$8,IF($A19=7,ECHEANCIER!$E$9,IF($A19=8,ECHEANCIER!$E$10,""))))))) ->  | G19: =SUM(G18)+SUM(F19) -> 13660 | I19: 0 | J19: =IF($A19="","",IF($A19=2,ECHEANCIER!$E$4,IF($A19=4,ECHEANCIER!$E$6,IF($A19=5,ECHEANCIER!$E$7,IF($A19=6,ECHEANCIER!$E$8,IF($A19=7,ECHEANCIER!$E$9,IF($A19=8,ECHEANCIER!$E$10,""))))))) ->  | K19: 0 | L19: 0 | M19: 0
G20: 13660 | I20: 0 | J20: =IF($A20="","",IF($A20=2,ECHEANCIER!$E$4,IF($A20=4,ECHEANCIER!$E$6,IF($A20=5,ECHEANCIER!$E$7,IF($A20=6,ECHEANCIER!$E$8,IF($A20=7,ECHEANCIER!$E$9,IF($A20=8,ECHEANCIER!$E$10,""))))))) ->  | K20: 0 | L20: 0 | M20: 0
G21: 13660
G22: 13660
G23: 13660
A24: TOTAL MOIS | H24: =SUM(H5:H23) -> 0 | I24: =SUM(I5:I23) -> 0 | J24: =SUM(J5:J23) -> 0 | K24: 0 | L24: 0 | M24: 0
A25: SOUS TOTAL | G25: =G23 -> 13660 | H25: =H24+H4 -> 10500 | I25: =I24+I4 -> 40 | J25: =J24+J4 -> -4395 | K25: =K24+K4 -> 650 | L25: -135 | M25: =M24+M4 -> -500
A26: TOTAL | H26: =H25+I25 -> 10540 | J26: =J24+J4 -> -4395 | K26: =SUM(K25:L25) -> 515 | M26: =M24+M4 -> -500

Sheet SEPTEMBRE
A1: =MID(CELL("filename",A1),FIND("]",CELL("filename",A1))+1,32) -> SEPTEMBRE
A2: N° SAISIE | B2: JOURS | C2: MODE | D2: TIERS | E2: CATEGORIE | F2: BANQUE POSTALE | H2: RECETTES | J2: DEPENSES | K2: C. PORT | M2: DIVERS
C3: PAIEMENT | F3: DEBIT/CREDIT | G3: SOLDE | H3: RETRAITE | I3: DIVERSES | K3: LOYER | L3: CHARGES
A4: REPORT | B4: 2016-09-01 | G4: =AOUT!G25 -> 13660 | H4: =AOUT!H25 -> 10500 | I4: =AOUT!I25 -> 40 | J4: =AOUT!J25 -> -4395 | K4: =AOUT!K25 -> 650 | L4: =AOUT!L25 -> -135 | M4: =AOUT!M25 -> -500
A5: 1 | B5: =B4 -> 2016-09-01 | C5: =ECHEANCIER!C3 -> Vir recu | D5: =ECHEANCIER!D3 -> ARCO | E5: =ECHEANCIER!E3 -> RETRAITE | F5: =IF($B5<=TODAY(),ECHEANCIER!$F3,0) -> 0 | G5: =SUM(G4)+SUM(F5) -> 13660 | H5: =F5 -> 0 | J5: =IF($A5="","",IF($A5=2,ECHEANCIER!$E$4,IF($A5=4,ECHEANCIER!$E$6,IF($A5=5,ECHEANCIER!$E$7,IF($A5=6,ECHEANCIER!$E$8,IF($A5=7,ECHEANCIER!$E$9,IF($A5=8,ECHEANCIER!$E$10,""))))))) -> 
A6: 2 | B6: =B4+4 -> 2016-09-05 | C6: =ECHEANCIER!C4 -> Prel | D6: =ECHEANCIER!D4 -> UNEO | E6: =ECHEANCIER!E4 -> MUTUELLE | F6: =IF($B6<=TODAY(),ECHEANCIER!$F4,0) -> 0 | G6: =SUM(G5)+SUM(F6) -> 13660 | H6: =IF($A6="","",IF($A6=1,ECHEANCIER!$E$3,IF($A6=3,ECHEANCIER!$E$5,IF($A6<>"RETRAITE","")))) ->  | J6: =F6 -> 0
A7: 3 | B7: =B4+9 -> 2016-09-10 | C7: =ECHEANCIER!C5 -> Vir recu | D7: =ECHEANCIER!D5 -> CRAM | E7: =ECHEANCIER!E5 -> RETRAITE | F7: =IF($B7<=TODAY(),ECHEANCIER!$F5,0) -> 0 | G7: 13660 | H7: =F7 -> 0 | J7: =F7 -> 0
A8: 4 | B8: =B4+9 -> 2016-09-10 | C8: =ECHEANCIER!C6 -> Prel | D8: =ECHEANCIER!D6 -> A.L.M. | E8: =ECHEANCIER!E6 -> EAUX | F8: =IF($B8<=TODAY(),ECHEANCIER!$F6,0) -> 0 | G8: 13660 | H8: =IF($A8="","",IF($A8=1,ECHEANCIER!$E$3,IF($A8=3,ECHEANCIER!$E$5,IF($A8<>"RETRAITE","")))) ->  | J8: 0
A9: 5 | B9: =B4+14 -> 2016-09-15 | C9: =ECHEANCIER!C7 -> Prel | D9: =ECHEANCIER!D7 -> T.P. | E9: =ECHEANCIER!E7 -> T.HABI | F9: =IF($B9<=TODAY(),ECHEANCIER!$F7,0) -> 0 | G9: 13660 | H9: =IF($A9="","",IF($A9=1,ECHEANCIER!$E$3,IF($A9=3,ECHEANCIER!$E$5,IF($A9<>"RETRAITE","")))) ->  | J9: 0
A10: 6 | B10: =B4+14 -> 2016-09-15 | C10: =ECHEANCIER!C8 -> Prel | D10: =ECHEANCIER!D8 -> T.P. | E10: =ECHEANCIER!E8 -> T.FONC | F10: =IF($B10<=TODAY(),ECHEANCIER!$F8,0) -> 0 | G10: 13660 | H10: =IF($A10="","",IF($A10=1,ECHEANCIER!$E$3,IF($A10=3,ECHEANCIER!$E$5,IF($A10<>"RETRAITE","")))) ->  | J10: 0
A11: 7 | B11: =B4+14 -> 2016-09-15 | C11: =ECHEANCIER!C9 -> Prel | D11: =ECHEANCIER!D9 -> T.P. | E11: =ECHEANCIER!E9 -> IMP.REV | F11: =IF($B11<=TODAY(),ECHEANCIER!$F9,0) -> 0 | G11: 13660 | H11: =IF($A11="","",IF($A11=1,ECHEANCIER!$E$3,IF($A11=3,ECHEANCIER!$E$5,IF($A11<>"RETRAITE","")))) ->  | J11: 0
A12: 8 | B12: =B4+19 -> 2016-09-20 | C12: =ECHEANCIER!C10 -> Prel | D12: =ECHEANCIER!D10 -> ENGIE | E12: =ECHEANCIER!E10 -> GAZ-ELEC | F12: =IF($B12<=TODAY(),ECHEANCIER!$F10,0) -> 0 | G12: 13660 | H12: =IF($A12="","",IF($A12=1,ECHEANCIER!$E$3,IF($A12=3,ECHEANCIER!$E$5,IF($A12<>"RETRAITE","")))) ->  | J12: 0
A13: 9 | B13: =B5+26 -> 2016-09-27 | C13: =ECHEANCIER!C11 -> Prel | D13: =ECHEANCIER!D11 -> ST CHRIST | E13: =ECHEANCIER!E11 -> ASS.VOIT | F13: =IF(AND($A13=9,$E13="ASS.VOIT",OR($A$1="janvier",$A$1="avril",$A$1="juillet",$A$1="octobre")),ECHEANCIER!$F$11,"") ->  | G13: 13660 | K13: =IF($E13="C. PORT LOYER",$F13,0) -> 0 | L13: =IF($E13="C. PORT CHARGES",$F13,0) -> 0 | M13: =IF($E13="DIVERS",$F13,0) -> 0
G14: 13660 | I14: =IF($E14="RECETTES DIVERSES",$F14,0) -> 0 | J14: =IF($E14="DEPENSES",$F14,0) -> 0 | K14: =IF($E14="C. PORT LOYER",$F14,0) -> 0 | L14: =IF($E14="C. PORT CHARGES",$F14,0) -> 0 | M14: =IF($E14="DIVERS",$F14,0) -> 0
G15: 13660 | I15: =IF($E15="RECETTES DIVERSES",$F15,0) -> 0 | J15: 0 | K15: 0 | L15: 0 | M15: 0
G16: 13660 | I16: =IF($E16="RECETTES DIVERSES",$F16,0) -> 0 | J16: 0 | K16: 0 | L16: 0 | M16: 0
G17: 13660 | I17: 0 | J17: 0 | K17: 0 | L17: 0 | M17: 0
G18: =SUM(G17)+SUM(F18) -> 13660 | I18: 0 | J18: 0 | K18: 0 | L18: 0 | M18: 0
F19: =IF($A19="","",IF($A19=2,ECHEANCIER!$E$4,IF($A19=4,ECHEANCIER!$E$6,IF($A19=5,ECHEANCIER!$E$7,IF($A19=6,ECHEANCIER!$E$8,IF($A19=7,ECHEANCIER!$E$9,IF($A19=8,ECHEANCIER!$E$10,""))))))) ->  | G19: 13660 | I19: 0 | J19: =IF($A19="","",IF($A19=2,ECHEANCIER!$E$4,IF($A19=4,ECHEANCIER!$E$6,IF($A19=5,ECHEANCIER!$E$7,IF($A19=6,ECHEANCIER!$E$8,IF($A19=7,ECHEANCIER!$E$9,IF($A19=8,ECHEANCIER!$E$10,""))))))) ->  | K19: 0 | L19: 0 | M19: 0
G20: 13660 | I20: 0 | J20: =IF($A20="","",IF($A20=2,ECHEANCIER!$E$4,IF($A20=4,ECHEANCIER!$E$6,IF($A20=5,ECHEANCIER!$E$7,IF($A20=6,ECHEANCIER!$E$8,IF($A20=7,ECHEANCIER!$E$9,IF($A20=8,ECHEANCIER!$E$10,""))))))) ->  | K20: 0 | L20: 0 | M20: 0
G21: 13660
G22: 13660
G23: 13660
A24: TOTAL MOIS | H24: =SUM(H5:H23) -> 0 | I24: =SUM(I5:I23) -> 0 | J24: =SUM(J5:J23) -> 0 | K24: 0 | L24: 0 | M24: 0
A25: SOUS TOTAL | G25: =G23 -> 13660 | H25: =H24+H4 -> 10500 | I25: =I24+I4 -> 40 | J25: =J24+J4 -> -4395 | K25: =K24+K4 -> 650 | L25: -135 | M25: =M24+M4 -> -500
A26: TOTAL | H26: =H25+I25 -> 10540 | J26: =J24+J4 -> -4395 | K26: =SUM(K25:L25) -> 515 | M26: =M24+M4 -> -500

Sheet OCTOBRE
A1: =MID(CELL("filename",A1),FIND("]",CELL("filename",A1))+1,32) -> OCTOBRE
A2: N° SAISIE | B2: JOURS | C2: MODE | D2: TIERS | E2: CATEGORIE | F2: BANQUE POSTALE | H2: RECETTES | J2: DEPENSES | K2: C. PORT | M2: DIVERS
C3: PAIEMENT | F3: DEBIT/CREDIT | G3: SOLDE | H3: RETRAITE | I3: DIVERSES | K3: LOYER | L3: CHARGES
A4: REPORT | B4: 2016-10-01 | G4: =SEPTEMBRE!G25 -> 13660 | H4: =SEPTEMBRE!H25 -> 10500 | I4: =SEPTEMBRE!I25 -> 40 | J4: =SEPTEMBRE!J25 -> -4395 | K4: =SEPTEMBRE!K25 -> 650 | L4: =SEPTEMBRE!L25 -> -135 | M4: =SEPTEMBRE!M25 -> -500
A5: 1 | B5: =B4 -> 2016-10-01 | C5: =ECHEANCIER!C3 -> Vir recu | D5: =ECHEANCIER!D3 -> ARCO | E5: =ECHEANCIER!E3 -> RETRAITE | F5: =IF($B5<=TODAY(),ECHEANCIER!$F3,0) -> 0 | G5: =SUM(G4)+SUM(F5) -> 13660 | H5: =F5 -> 0 | J5: =IF($A5="","",IF($A5=2,ECHEANCIER!$E$4,IF($A5=4,ECHEANCIER!$E$6,IF($A5=5,ECHEANCIER!$E$7,IF($A5=6,ECHEANCIER!$E$8,IF($A5=7,ECHEANCIER!$E$9,IF($A5=8,ECHEANCIER!$E$10,""))))))) -> 
A6: 2 | B6: =B4+4 -> 2016-10-05 | C6: =ECHEANCIER!C4 -> Prel | D6: =ECHEANCIER!D4 -> UNEO | E6: =ECHEANCIER!E4 -> MUTUELLE | F6: =IF($B6<=TODAY(),ECHEANCIER!$F4,0) -> 0 | G6: =SUM(G5)+SUM(F6) -> 13660 | H6: =IF($A6="","",IF($A6=1,ECHEANCIER!$E$3,IF($A6=3,ECHEANCIER!$E$5,IF($A6<>"RETRAITE","")))) ->  | J6: =F6 -> 0
A7: 3 | B7: =B4+9 -> 2016-10-10 | C7: =ECHEANCIER!C5 -> Vir recu | D7: =ECHEANCIER!D5 -> CRAM | E7: =ECHEANCIER!E5 -> RETRAITE | F7: =IF($B7<=TODAY(),ECHEANCIER!$F5,0) -> 0 | G7: 13660 | H7: =F7 -> 0 | J7: =F7 -> 0
A8: 4 | B8: =B4+9 -> 2016-10-10 | C8: =ECHEANCIER!C6 -> Prel | D8: =ECHEANCIER!D6 -> A.L.M. | E8: =ECHEANCIER!E6 -> EAUX | F8: =IF($B8<=TODAY(),ECHEANCIER!$F6,0) -> 0 | G8: 13660 | H8: =IF($A8="","",IF($A8=1,ECHEANCIER!$E$3,IF($A8=3,ECHEANCIER!$E$5,IF($A8<>"RETRAITE","")))) ->  | J8: 0
A9: 5 | B9: =B4+14 -> 2016-10-15 | C9: =ECHEANCIER!C7 -> Prel | D9: =ECHEANCIER!D7 -> T.P. | E9: =ECHEANCIER!E7 -> T.HABI | F9: =IF($B9<=TODAY(),ECHEANCIER!$F7,0) -> 0 | G9: 13660 | H9: =IF($A9="","",IF($A9=1,ECHEANCIER!$E$3,IF($A9=3,ECHEANCIER!$E$5,IF($A9<>"RETRAITE","")))) ->  | J9: 0
A10: 6 | B10: =B4+14 -> 2016-10-15 | C10: =ECHEANCIER!C8 -> Prel | D10: =ECHEANCIER!D8 -> T.P. | E10: =ECHEANCIER!E8 -> T.FONC | F10: =IF($B10<=TODAY(),ECHEANCIER!$F8,0) -> 0 | G10: 13660 | H10: =IF($A10="","",IF($A10=1,ECHEANCIER!$E$3,IF($A10=3,ECHEANCIER!$E$5,IF($A10<>"RETRAITE","")))) ->  | J10: 0
A11: 7 | B11: =B4+14 -> 2016-10-15 | C11: =ECHEANCIER!C9 -> Prel | D11: =ECHEANCIER!D9 -> T.P. | E11: =ECHEANCIER!E9 -> IMP.REV | F11: =IF($B11<=TODAY(),ECHEANCIER!$F9,0) -> 0 | G11: 13660 | H11: =IF($A11="","",IF($A11=1,ECHEANCIER!$E$3,IF($A11=3,ECHEANCIER!$E$5,IF($A11<>"RETRAITE","")))) ->  | J11: 0
A12: 8 | B12: =B4+19 -> 2016-10-20 | C12: =ECHEANCIER!C10 -> Prel | D12: =ECHEANCIER!D10 -> ENGIE | E12: =ECHEANCIER!E10 -> GAZ-ELEC | F12: =IF($B12<=TODAY(),ECHEANCIER!$F10,0) -> 0 | G12: 13660 | H12: =IF($A12="","",IF($A12=1,ECHEANCIER!$E$3,IF($A12=3,ECHEANCIER!$E$5,IF($A12<>"RETRAITE","")))) ->  | J12: 0
A13: 9 | B13: =B5+26 -> 2016-10-27 | C13: =ECHEANCIER!C11 -> Prel | D13: =ECHEANCIER!D11 -> ST CHRIST | E13: =ECHEANCIER!E11 -> ASS.VOIT | F13: =IF(AND($A13=9,$E13="ASS.VOIT",OR($A$1="janvier",$A$1="avril",$A$1="juillet",$A$1="octobre")),ECHEANCIER!$F$11,"") -> -95 | G13: 13565 | J13: -95 | K13: =IF($E13="C. PORT LOYER",$F13,0) -> 0 | L13: =IF($E13="C. PORT CHARGES",$F13,0) -> 0 | M13: =IF($E13="DIVERS",$F13,0) -> 0
G14: 13565 | I14: =IF($E14="RECETTES DIVERSES",$F14,0) -> 0 | J14: =IF($E14="DEPENSES",$F14,0) -> 0 | K14: =IF($E14="C. PORT LOYER",$F14,0) -> 0 | L14: =IF($E14="C. PORT CHARGES",$F14,0) -> 0 | M14: =IF($E14="DIVERS",$F14,0) -> 0
G15: 13565 | I15: =IF($E15="RECETTES DIVERSES",$F15,0) -> 0 | J15: 0 | K15: 0 | L15: 0 | M15: 0
G16: 13565 | I16: =IF($E16="RECETTES DIVERSES",$F16,0) -> 0 | J16: 0 | K16: 0 | L16: 0 | M16: 0
G17: 13565 | I17: 0 | J17: 0 | K17: 0 | L17: 0 | M17: 0
G18: =SUM(G17)+SUM(F18) -> 13565 | I18: 0 | J18: 0 | K18: 0 | L18: 0 | M18: 0
F19: =IF($A19="","",IF($A19=2,ECHEANCIER!$E$4,IF($A19=4,ECHEANCIER!$E$6,IF($A19=5,ECHEANCIER!$E$7,IF($A19=6,ECHEANCIER!$E$8,IF($A19=7,ECHEANCIER!$E$9,IF($A19=8,ECHEANCIER!$E$10,""))))))) ->  | G19: 13565 | I19: 0 | J19: =IF($A19="","",IF($A19=2,ECHEANCIER!$E$4,IF($A19=4,ECHEANCIER!$E$6,IF($A19=5,ECHEANCIER!$E$7,IF($A19=6,ECHEANCIER!$E$8,IF($A19=7,ECHEANCIER!$E$9,IF($A19=8,ECHEANCIER!$E$10,""))))))) ->  | K19: 0 | L19: 0 | M19: 0
G20: 13565 | I20: 0 | J20: =IF($A20="","",IF($A20=2,ECHEANCIER!$E$4,IF($A20=4,ECHEANCIER!$E$6,IF($A20=5,ECHEANCIER!$E$7,IF($A20=6,ECHEANCIER!$E$8,IF($A20=7,ECHEANCIER!$E$9,IF($A20=8,ECHEANCIER!$E$10,""))))))) ->  | K20: 0 | L20: 0 | M20: 0
G21: 13565
G22: 13565
G23: 13565
A24: TOTAL MOIS | H24: =SUM(H5:H23) -> 0 | I24: =SUM(I5:I23) -> 0 | J24: =SUM(J5:J23) -> -95 | K24: 0 | L24: 0 | M24: 0
A25: SOUS TOTAL | G25: =G23 -> 13565 | H25: =H24+H4 -> 10500 | I25: =I24+I4 -> 40 | J25: =J24+J4 -> -4490 | K25: =K24+K4 -> 650 | L25: -135 | M25: =M24+M4 -> -500
A26: TOTAL | H26: =H25+I25 -> 10540 | J26: =J24+J4 -> -4490 | K26: =SUM(K25:L25) -> 515 | M26: =M24+M4 -> -500

Sheet NOVEMBRE
A1: =MID(CELL("filename",A1),FIND("]",CELL("filename",A1))+1,32) -> NOVEMBRE
A2: N° SAISIE | B2: JOURS | C2: MODE | D2: TIERS | E2: CATEGORIE | F2: BANQUE POSTALE | H2: RECETTES | J2: DEPENSES | K2: C. PORT | M2: DIVERS
C3: PAIEMENT | F3: DEBIT/CREDIT | G3: SOLDE | H3: RETRAITE | I3: DIVERSES | K3: LOYER | L3: CHARGES
A4: REPORT | B4: 2016-11-01 | G4: =OCTOBRE!G25 -> 13565 | H4: =OCTOBRE!H25 -> 10500 | I4: =OCTOBRE!I25 -> 40 | J4: =OCTOBRE!J25 -> -4490 | K4: =OCTOBRE!K25 -> 650 | L4: =OCTOBRE!L25 -> -135 | M4: =OCTOBRE!M25 -> -500
A5: 1 | B5: =B4 -> 2016-11-01 | C5: =ECHEANCIER!C3 -> Vir recu | D5: =ECHEANCIER!D3 -> ARCO | E5: =ECHEANCIER!E3 -> RETRAITE | F5: =IF($B5<=TODAY(),ECHEANCIER!$F3,0) -> 0 | G5: =SUM(G4)+SUM(F5) -> 13565 | H5: =F5 -> 0 | J5: =IF($A5="","",IF($A5=2,ECHEANCIER!$E$4,IF($A5=4,ECHEANCIER!$E$6,IF($A5=5,ECHEANCIER!$E$7,IF($A5=6,ECHEANCIER!$E$8,IF($A5=7,ECHEANCIER!$E$9,IF($A5=8,ECHEANCIER!$E$10,""))))))) -> 
A6: 2 | B6: =B4+4 -> 2016-11-05 | C6: =ECHEANCIER!C4 -> Prel | D6: =ECHEANCIER!D4 -> UNEO | E6: =ECHEANCIER!E4 -> MUTUELLE | F6: =IF($B6<=TODAY(),ECHEANCIER!$F4,0) -> 0 | G6: =SUM(G5)+SUM(F6) -> 13565 | H6: =IF($A6="","",IF($A6=1,ECHEANCIER!$E$3,IF($A6=3,ECHEANCIER!$E$5,IF($A6<>"RETRAITE","")))) ->  | J6: =F6 -> 0
A7: 3 | B7: =B4+9 -> 2016-11-10 | C7: =ECHEANCIER!C5 -> Vir recu | D7: =ECHEANCIER!D5 -> CRAM | E7: =ECHEANCIER!E5 -> RETRAITE | F7: =IF($B7<=TODAY(),ECHEANCIER!$F5,0) -> 0 | G7: 13565 | H7: =F7 -> 0 | J7: =F7 -> 0
A8: 4 | B8: =B4+9 -> 2016-11-10 | C8: =ECHEANCIER!C6 -> Prel | D8: =ECHEANCIER!D6 -> A.L.M. | E8: =ECHEANCIER!E6 -> EAUX | F8: =IF($B8<=TODAY(),ECHEANCIER!$F6,0) -> 0 | G8: 13565 | H8: =IF($A8="","",IF($A8=1,ECHEANCIER!$E$3,IF($A8=3,ECHEANCIER!$E$5,IF($A8<>"RETRAITE","")))) ->  | J8: 0
A9: 5 | B9: =B4+14 -> 2016-11-15 | C9: =ECHEANCIER!C7 -> Prel | D9: =ECHEANCIER!D7 -> T.P. | E9: =ECHEANCIER!E7 -> T.HABI | F9: =IF($B9<=TODAY(),ECHEANCIER!$F7,0) -> 0 | G9: 13565 | H9: =IF($A9="","",IF($A9=1,ECHEANCIER!$E$3,IF($A9=3,ECHEANCIER!$E$5,IF($A9<>"RETRAITE","")))) ->  | J9: 0
A10: 6 | B10: =B4+14 -> 2016-11-15 | C10: =ECHEANCIER!C8 -> Prel | D10: =ECHEANCIER!D8 -> T.P. | E10: =ECHEANCIER!E8 -> T.FONC | F10: =IF($B10<=TODAY(),ECHEANCIER!$F8,0) -> 0 | G10: 13565 | H10: =IF($A10="","",IF($A10=1,ECHEANCIER!$E$3,IF($A10=3,ECHEANCIER!$E$5,IF($A10<>"RETRAITE","")))) ->  | J10: 0
A11: 7 | B11: =B4+14 -> 2016-11-15 | C11: =ECHEANCIER!C9 -> Prel | D11: =ECHEANCIER!D9 -> T.P. | E11: =ECHEANCIER!E9 -> IMP.REV | F11: =IF($B11<=TODAY(),ECHEANCIER!$F9,0) -> 0 | G11: 13565 | H11: =IF($A11="","",IF($A11=1,ECHEANCIER!$E$3,IF($A11=3,ECHEANCIER!$E$5,IF($A11<>"RETRAITE","")))) ->  | J11: 0
A12: 8 | B12: =B4+19 -> 2016-11-20 | C12: =ECHEANCIER!C10 -> Prel | D12: =ECHEANCIER!D10 -> ENGIE | E12: =ECHEANCIER!E10 -> GAZ-ELEC | F12: =IF($B12<=TODAY(),ECHEANCIER!$F10,0) -> 0 | G12: 13565 | H12: =IF($A12="","",IF($A12=1,ECHEANCIER!$E$3,IF($A12=3,ECHEANCIER!$E$5,IF($A12<>"RETRAITE","")))) ->  | J12: 0
A13: 9 | B13: =B5+26 -> 2016-11-27 | C13: =ECHEANCIER!C11 -> Prel | D13: =ECHEANCIER!D11 -> ST CHRIST | E13: =ECHEANCIER!E11 -> ASS.VOIT | F13: =IF(AND($A13=9,$E13="ASS.VOIT",OR($A$1="janvier",$A$1="avril",$A$1="juillet",$A$1="octobre")),ECHEANCIER!$F$11,"") ->  | G13: 13565 | K13: =IF($E13="C. PORT LOYER",$F13,0) -> 0 | L13: =IF($E13="C. PORT CHARGES",$F13,0) -> 0 | M13: =IF($E13="DIVERS",$F13,0) -> 0
G14: 13565 | I14: =IF($E14="RECETTES DIVERSES",$F14,0) -> 0 | J14: =IF($E14="DEPENSES",$F14,0) -> 0 | K14: =IF($E14="C. PORT LOYER",$F14,0) -> 0 | L14: =IF($E14="C. PORT CHARGES",$F14,0) -> 0 | M14: =IF($E14="DIVERS",$F14,0) -> 0
G15: 13565 | I15: =IF($E15="RECETTES DIVERSES",$F15,0) -> 0 | J15: 0 | K15: 0 | L15: 0 | M15: 0
G16: 13565 | I16: =IF($E16="RECETTES DIVERSES",$F16,0) -> 0 | J16: 0 | K16: 0 | L16: 0 | M16: 0
G17: 13565 | I17: 0 | J17: 0 | K17: 0 | L17: 0 | M17: 0
G18: =SUM(G17)+SUM(F18) -> 13565 | I18: 0 | J18: 0 | K18: 0 | L18: 0 | M18: 0
F19: =IF($A19="","",IF($A19=2,ECHEANCIER!$E$4,IF($A19=4,ECHEANCIER!$E$6,IF($A19=5,ECHEANCIER!$E$7,IF($A19=6,ECHEANCIER!$E$8,IF($A19=7,ECHEANCIER!$E$9,IF($A19=8,ECHEANCIER!$E$10,""))))))) ->  | G19: 13565 | I19: 0 | J19: =IF($A19="","",IF($A19=2,ECHEANCIER!$E$4,IF($A19=4,ECHEANCIER!$E$6,IF($A19=5,ECHEANCIER!$E$7,IF($A19=6,ECHEANCIER!$E$8,IF($A19=7,ECHEANCIER!$E$9,IF($A19=8,ECHEANCIER!$E$10,""))))))) ->  | K19: 0 | L19: 0 | M19: 0
G20: 13565 | I20: 0 | J20: =IF($A20="","",IF($A20=2,ECHEANCIER!$E$4,IF($A20=4,ECHEANCIER!$E$6,IF($A20=5,ECHEANCIER!$E$7,IF($A20=6,ECHEANCIER!$E$8,IF($A20=7,ECHEANCIER!$E$9,IF($A20=8,ECHEANCIER!$E$10,""))))))) ->  | K20: 0 | L20: 0 | M20: 0
G21: 13565
G22: 13565
G23: 13565
A24: TOTAL MOIS | H24: =SUM(H5:H23) -> 0 | I24: =SUM(I5:I23) -> 0 | J24: =SUM(J5:J23) -> 0 | K24: 0 | L24: 0 | M24: 0
A25: SOUS TOTAL | G25: =G23 -> 13565 | H25: =H24+H4 -> 10500 | I25: =I24+I4 -> 40 | J25: =J24+J4 -> -4490 | K25: =K24+K4 -> 650 | L25: -135 | M25: =M24+M4 -> -500
A26: TOTAL | H26: =H25+I25 -> 10540 | J26: =J24+J4 -> -4490 | K26: =SUM(K25:L25) -> 515 | M26: =M24+M4 -> -500

Sheet DECEMBRE
A1: =MID(CELL("filename",A1),FIND("]",CELL("filename",A1))+1,32) -> DECEMBRE
A2: N° SAISIE | B2: JOURS | C2: MODE | D2: TIERS | E2: CATEGORIE | F2: BANQUE POSTALE | H2: RECETTES | J2: DEPENSES | K2: C. PORT | M2: DIVERS
C3: PAIEMENT | F3: DEBIT/CREDIT | G3: SOLDE | H3: RETRAITE | I3: DIVERSES | K3: LOYER | L3: CHARGES
A4: REPORT | B4: 2016-12-01 | G4: =NOVEMBRE!G25 -> 13565 | H4: =NOVEMBRE!H25 -> 10500 | I4: =NOVEMBRE!I25 -> 40 | J4: =NOVEMBRE!J25 -> -4490 | K4: =NOVEMBRE!K25 -> 650 | L4: =NOVEMBRE!L25 -> -135 | M4: =NOVEMBRE!M25 -> -500
A5: 1 | B5: =B4 -> 2016-12-01 | C5: =ECHEANCIER!C3 -> Vir recu | D5: =ECHEANCIER!D3 -> ARCO | E5: =ECHEANCIER!E3 -> RETRAITE | F5: =IF($B5<=TODAY(),ECHEANCIER!$F3,0) -> 0 | G5: =SUM(G4)+SUM(F5) -> 13565 | H5: =F5 -> 0 | J5: =IF($A5="","",IF($A5=2,ECHEANCIER!$E$4,IF($A5=4,ECHEANCIER!$E$6,IF($A5=5,ECHEANCIER!$E$7,IF($A5=6,ECHEANCIER!$E$8,IF($A5=7,ECHEANCIER!$E$9,IF($A5=8,ECHEANCIER!$E$10,""))))))) -> 
A6: 2 | B6: =B4+4 -> 2016-12-05 | C6: =ECHEANCIER!C4 -> Prel | D6: =ECHEANCIER!D4 -> UNEO | E6: =ECHEANCIER!E4 -> MUTUELLE | F6: =IF($B6<=TODAY(),ECHEANCIER!$F4,0) -> 0 | G6: =SUM(G5)+SUM(F6) -> 13565 | H6: =IF($A6="","",IF($A6=1,ECHEANCIER!$E$3,IF($A6=3,ECHEANCIER!$E$5,IF($A6<>"RETRAITE","")))) ->  | J6: =F6 -> 0
A7: 3 | B7: =B4+9 -> 2016-12-10 | C7: =ECHEANCIER!C5 -> Vir recu | D7: =ECHEANCIER!D5 -> CRAM | E7: =ECHEANCIER!E5 -> RETRAITE | F7: =IF($B7<=TODAY(),ECHEANCIER!$F5,0) -> 0 | G7: 13565 | H7: =F7 -> 0 | J7: =F7 -> 0
A8: 4 | B8: =B4+9 -> 2016-12-10 | C8: =ECHEANCIER!C6 -> Prel | D8: =ECHEANCIER!D6 -> A.L.M. | E8: =ECHEANCIER!E6 -> EAUX | F8: =IF($B8<=TODAY(),ECHEANCIER!$F6,0) -> 0 | G8: 13565 | H8: =IF($A8="","",IF($A8=1,ECHEANCIER!$E$3,IF($A8=3,ECHEANCIER!$E$5,IF($A8<>"RETRAITE","")))) ->  | J8: 0
A9: 5 | B9: =B4+14 -> 2016-12-15 | C9: =ECHEANCIER!C7 -> Prel | D9: =ECHEANCIER!D7 -> T.P. | E9: =ECHEANCIER!E7 -> T.HABI | F9: =IF($B9<=TODAY(),ECHEANCIER!$F7,0) -> 0 | G9: 13565 | H9: =IF($A9="","",IF($A9=1,ECHEANCIER!$E$3,IF($A9=3,ECHEANCIER!$E$5,IF($A9<>"RETRAITE","")))) ->  | J9: 0
A10: 6 | B10: =B4+14 -> 2016-12-15 | C10: =ECHEANCIER!C8 -> Prel | D10: =ECHEANCIER!D8 -> T.P. | E10: =ECHEANCIER!E8 -> T.FONC | F10: =IF($B10<=TODAY(),ECHEANCIER!$F8,0) -> 0 | G10: 13565 | H10: =IF($A10="","",IF($A10=1,ECHEANCIER!$E$3,IF($A10=3,ECHEANCIER!$E$5,IF($A10<>"RETRAITE","")))) ->  | J10: 0
A11: 7 | B11: =B4+14 -> 2016-12-15 | C11: =ECHEANCIER!C9 -> Prel | D11: =ECHEANCIER!D9 -> T.P. | E11: =ECHEANCIER!E9 -> IMP.REV | F11: =IF($B11<=TODAY(),ECHEANCIER!$F9,0) -> 0 | G11: 13565 | H11: =IF($A11="","",IF($A11=1,ECHEANCIER!$E$3,IF($A11=3,ECHEANCIER!$E$5,IF($A11<>"RETRAITE","")))) ->  | J11: 0
A12: 8 | B12: =B4+19 -> 2016-12-20 | C12: =ECHEANCIER!C10 -> Prel | D12: =ECHEANCIER!D10 -> ENGIE | E12: =ECHEANCIER!E10 -> GAZ-ELEC | F12: =IF($B12<=TODAY(),ECHEANCIER!$F10,0) -> 0 | G12: 13565 | H12: =IF($A12="","",IF($A12=1,ECHEANCIER!$E$3,IF($A12=3,ECHEANCIER!$E$5,IF($A12<>"RETRAITE","")))) ->  | J12: 0
A13: 9 | B13: =B5+26 -> 2016-12-27 | C13: =ECHEANCIER!C11 -> Prel | D13: =ECHEANCIER!D11 -> ST CHRIST | E13: =ECHEANCIER!E11 -> ASS.VOIT | F13: =IF(AND($A13=9,$E13="ASS.VOIT",OR($A$1="janvier",$A$1="avril",$A$1="juillet",$A$1="octobre")),ECHEANCIER!$F$11,"") ->  | G13: 13565 | K13: =IF($E13="C. PORT LOYER",$F13,0) -> 0 | L13: =IF($E13="C. PORT CHARGES",$F13,0) -> 0 | M13: =IF($E13="DIVERS",$F13,0) -> 0
G14: 13565 | I14: =IF($E14="RECETTES DIVERSES",$F14,0) -> 0 | J14: =IF($E14="DEPENSES",$F14,0) -> 0 | K14: =IF($E14="C. PORT LOYER",$F14,0) -> 0 | L14: =IF($E14="C. PORT CHARGES",$F14,0) -> 0 | M14: =IF($E14="DIVERS",$F14,0) -> 0
G15: 13565 | I15: =IF($E15="RECETTES DIVERSES",$F15,0) -> 0 | J15: 0 | K15: 0 | L15: 0 | M15: 0
G16: 13565 | I16: =IF($E16="RECETTES DIVERSES",$F16,0) -> 0 | J16: 0 | K16: 0 | L16: 0 | M16: 0
G17: 13565 | I17: 0 | J17: 0 | K17: 0 | L17: 0 | M17: 0
G18: =SUM(G17)+SUM(F18) -> 13565 | I18: 0 | J18: 0 | K18: 0 | L18: 0 | M18: 0
F19: =IF($A19="","",IF($A19=2,ECHEANCIER!$E$4,IF($A19=4,ECHEANCIER!$E$6,IF($A19=5,ECHEANCIER!$E$7,IF($A19=6,ECHEANCIER!$E$8,IF($A19=7,ECHEANCIER!$E$9,IF($A19=8,ECHEANCIER!$E$10,""))))))) ->  | G19: 13565 | I19: 0 | J19: =IF($A19="","",IF($A19=2,ECHEANCIER!$E$4,IF($A19=4,ECHEANCIER!$E$6,IF($A19=5,ECHEANCIER!$E$7,IF($A19=6,ECHEANCIER!$E$8,IF($A19=7,ECHEANCIER!$E$9,IF($A19=8,ECHEANCIER!$E$10,""))))))) ->  | K19: 0 | L19: 0 | M19: 0
G20: 13565 | I20: 0 | J20: =IF($A20="","",IF($A20=2,ECHEANCIER!$E$4,IF($A20=4,ECHEANCIER!$E$6,IF($A20=5,ECHEANCIER!$E$7,IF($A20=6,ECHEANCIER!$E$8,IF($A20=7,ECHEANCIER!$E$9,IF($A20=8,ECHEANCIER!$E$10,""))))))) ->  | K20: 0 | L20: 0 | M20: 0
G21: 13565
G22: 13565
G23: 13565
A24: TOTAL MOIS | H24: =SUM(H5:H23) -> 0 | I24: =SUM(I5:I23) -> 0 | J24: =SUM(J5:J23) -> 0 | K24: 0 | L24: 0 | M24: 0
A25: SOUS TOTAL | G25: =G23 -> 13565 | H25: =H24+H4 -> 10500 | I25: =I24+I4 -> 40 | J25: =J24+J4 -> -4490 | K25: =K24+K4 -> 650 | L25: -135 | M25: =M24+M4 -> -500
A26: TOTAL | H26: =H25+I25 -> 10540 | J26: =J24+J4 -> -4490 | K26: =SUM(K25:L25) -> 515 | M26: =M24+M4 -> -500

Sheet Feuil4 (hidden)
